Department Family,Entity,Payment Date,Expense Type,Expense Area,Supplier,Transaction Number,Amount,Description
MOJ,NOMS,08/03/2013,Contracted-out Other Services,Bail Accommodation Support Services,HOME GROUP LTD (STONHAM),4844843,"648,486.46",Bail accommodation and support services
MOJ,NOMS,20/03/2013,Contracted-out Catering Services,Woodhill,ARAMARK LTD,4846247,"25,747.66",Catering services 
MOJ,NOMS,22/03/2013,Contracted-out Catering Services,Holme House,ESS SUPPORT SERVICES WORLDWIDE,4844323,"47,186.21",Catering services 
MOJ,NOMS,07/03/2013,Staff compensation and associated legal costs payments,Director of P&CS Front Line Centrally Managed Funding,NORTHUMBRIA PROBATION TRUST,4843843,"29,660.42",Compensation and associated legal costs payments in respect of staff litigation
MOJ,NOMS,14/03/2013,Staff compensation and associated legal costs payments,Director of P&CS Front Line Centrally Managed Funding,THAMES VALLEY PROBATION TRUST,4856428,"25,662.62",Compensation and associated legal costs payments in respect of staff litigation
MOJ,NOMS,22/03/2013,Staff compensation and associated legal costs payments,Hewell,TREASURY SOLICITORS,4868545,"25,525.51",Compensation and associated legal costs payments in respect of staff litigation
MOJ,NOMS,01/03/2013,Prisoner compensation and associated legal costs payments,Wandsworth,TREASURY SOLICITORS,4839845,"60,000.00",Compensation and associated legal costs payments in respect of prisoner litigation
MOJ,NOMS,11/03/2013,Contracted-out Computer Services,NOMIS Programme,HP ENTERPRISE SERVICES UK LTD,4842922,"187,724.65",Computer services 
MOJ,NOMS,28/03/2013,Contracted-out Computer Services,MoJ ICT,MINISTRY OF JUSTICE,4876727,"6,379,148.43",Computer services 
MOJ,NOMS,28/03/2013,Contracted-out Computer Services,MoJ ICT,MINISTRY OF JUSTICE,4876730,"6,623,899.76",Computer services 
MOJ,NOMS,15/03/2013,Consultancy,Estates Capacity,G V A GRIMLEY,4853172,"99,947.95",Consultancy services
MOJ,NOMS,27/03/2013,Contribution of costs,Director of HRs Office and Programme Hub,MINISTRY OF JUSTICE,4876654,"2,591,829.33",Contribution to Civil Service HR Expert Services
MOJ,NOMS,22/03/2013,Counselling & Advisory Costs,Buckley Hall,GREATER MANCHESTER PROBATION TRUST,4869832,"52,845.87",Drug intervention services for prisoners
MOJ,NOMS,07/03/2013,Contracted-out Education,Morton Hall,LINCOLN COLLEGE,4826803,"31,644.00",Education services 
MOJ,NOMS,11/03/2013,Contracted-out Education,Dover,PERTEMPS PEOPLE DEVELOPMENT GROUP,4848629,"26,859.93",Education services 
MOJ,NOMS,20/03/2013,Contracted-out Education,Morton Hall,LINCOLN COLLEGE,4852474,"28,766.00",Education services 
MOJ,NOMS,21/03/2013,Electricity,Stocken,EDF ENERGY,4857084,"25,307.36",Electricity utility costs
MOJ,NOMS,21/03/2013,Electricity,Whitemoor,EDF ENERGY,4857084,"25,555.18",Electricity utility costs
MOJ,NOMS,21/03/2013,Electricity,Woodhill,EDF ENERGY,4857084,"25,613.58",Electricity utility costs
MOJ,NOMS,21/03/2013,Electricity,Durham,EDF ENERGY,4857084,"25,705.31",Electricity utility costs
MOJ,NOMS,21/03/2013,Electricity,Wealstun,EDF ENERGY,4857084,"26,310.02",Electricity utility costs
MOJ,NOMS,21/03/2013,Electricity,Hull,EDF ENERGY,4857084,"26,431.34",Electricity utility costs
MOJ,NOMS,21/03/2013,Electricity,Erlestoke and Shepton Mallet,EDF ENERGY,9714168,"26,685.60",Electricity utility costs
MOJ,NOMS,21/03/2013,Electricity,Dartmoor,EDF ENERGY,4857084,"26,995.19",Electricity utility costs
MOJ,NOMS,21/03/2013,Electricity,Wayland,EDF ENERGY,4857084,"29,433.48",Electricity utility costs
MOJ,NOMS,21/03/2013,Electricity,Holme House,EDF ENERGY,4857084,"29,462.89",Electricity utility costs
MOJ,NOMS,21/03/2013,Electricity,Kirkham,EDF ENERGY,4857084,"29,707.76",Electricity utility costs
MOJ,NOMS,21/03/2013,Electricity,Rochester,EDF ENERGY,4857084,"30,049.63",Electricity utility costs
MOJ,NOMS,21/03/2013,Electricity,Long Lartin,EDF ENERGY,4857084,"30,223.02",Electricity utility costs
MOJ,NOMS,21/03/2013,Electricity,Leeds,EDF ENERGY,4857084,"30,733.22",Electricity utility costs
MOJ,NOMS,21/03/2013,Electricity,Wakefield,EDF ENERGY,4857084,"31,266.56",Electricity utility costs
MOJ,NOMS,21/03/2013,Electricity,Mount (The),EDF ENERGY,4857084,"31,332.46",Electricity utility costs
MOJ,NOMS,21/03/2013,Electricity,Littlehey,EDF ENERGY,4857084,"31,338.49",Electricity utility costs
MOJ,NOMS,21/03/2013,Electricity,Wormwood Scrubs,EDF ENERGY,4857084,"31,711.99",Electricity utility costs
MOJ,NOMS,21/03/2013,Electricity,Full Sutton,EDF ENERGY,4857084,"33,004.66",Electricity utility costs
MOJ,NOMS,21/03/2013,Electricity,Pentonville,EDF ENERGY,4857084,"33,409.42",Electricity utility costs
MOJ,NOMS,21/03/2013,Electricity,Risley,EDF ENERGY,4857084,"35,353.57",Electricity utility costs
MOJ,NOMS,21/03/2013,Electricity,Hewell,EDF ENERGY,4857084,"37,479.86",Electricity utility costs
MOJ,NOMS,21/03/2013,Electricity,Feltham,EDF ENERGY,4857084,"39,509.47",Electricity utility costs
MOJ,NOMS,21/03/2013,Electricity,Ranby,EDF ENERGY,4857084,"39,748.34",Electricity utility costs
MOJ,NOMS,21/03/2013,Electricity,Liverpool,EDF ENERGY,4857084,"40,018.15",Electricity utility costs
MOJ,NOMS,21/03/2013,Electricity,Wandsworth,EDF ENERGY,4857084,"40,292.51",Electricity utility costs
MOJ,NOMS,21/03/2013,Electricity,Swaleside,EDF ENERGY,4857084,"41,688.18",Electricity utility costs
MOJ,NOMS,21/03/2013,Electricity,G4S Birmingham,EDF ENERGY,4857084,"42,037.78",Electricity utility costs
MOJ,NOMS,21/03/2013,Electricity,Highdown,EDF ENERGY,4857084,"44,394.83",Electricity utility costs
MOJ,NOMS,21/03/2013,Electricity,Northumberland,EDF ENERGY,4857084,"46,336.14",Electricity utility costs
MOJ,NOMS,21/03/2013,Electricity,Highpoint,EDF ENERGY,9714168,"46,396.50",Electricity utility costs
MOJ,NOMS,21/03/2013,Electricity,Frankland,EDF ENERGY,4857084,"46,862.56",Electricity utility costs
MOJ,NOMS,21/03/2013,Electricity,Manchester,EDF ENERGY,4857084,"46,889.06",Electricity utility costs
MOJ,NOMS,21/03/2013,Electricity,Belmarsh,EDF ENERGY,4857084,"46,897.98",Electricity utility costs
MOJ,NOMS,21/03/2013,Electricity,Isle of Wight,EDF ENERGY,19428336,"46,938.73",Electricity utility costs
MOJ,NOMS,21/03/2013,Electricity,Sheppey Clustered Services,EDF ENERGY,4857084,"57,762.20",Electricity utility costs
MOJ,NOMS,21/03/2013,Electricity,Lindholme,EDF ENERGY,4857084,"75,393.62",Electricity utility costs
MOJ,NOMS,21/03/2013,Electricity,Wymott,EDF ENERGY,4857084,"79,704.14",Electricity utility costs
MOJ,NOMS,25/03/2013,Contracted-out Electronic Monitoring,Electronic Monitoring,G4S CARE & JUSTICE SERVICES LTD,4867940,"4,185,621.34",Electronic monitoring services 
MOJ,NOMS,26/03/2013,Contracted-out Electronic Monitoring,Electronic Monitoring,G4S CARE & JUSTICE SERVICES LTD,4872162,"-4,185,621.34",Electronic monitoring services 
MOJ,NOMS,26/03/2013,Contracted-out Electronic Monitoring,Electronic Monitoring,SERCO LTD,4872172,"3,706,222.78",Electronic monitoring services 
MOJ,NOMS,26/03/2013,Contracted-out Electronic Monitoring,Electronic Monitoring,G4S CARE & JUSTICE SERVICES LTD,4869713,"4,187,644.01",Electronic monitoring services 
MOJ,NOMS,04/03/2013,WIP - Acquisitions,Estates Capacity,LEND LEASE CONSTRUCTION (EMEA) LTD,4810847,"257,689.20",Enhancement to buildings
MOJ,NOMS,05/03/2013,WIP - Acquisitions,Estates Capacity,LORNE STEWART PLC,4653525,"30,478.86",Enhancement to buildings
MOJ,NOMS,05/03/2013,WIP - Acquisitions,NOMIS Programme,CAPITA BUSINESS SERVICES LTD,4841428,"35,888.40",Enhancement to buildings
MOJ,NOMS,05/03/2013,WIP - Acquisitions,NOMIS Programme,CAPITA BUSINESS SERVICES LTD,4841429,"59,864.40",Enhancement to buildings
MOJ,NOMS,05/03/2013,WIP - Acquisitions,Estates Capacity,LEND LEASE CONSTRUCTION (EMEA) LTD,4842381,"388,484.40",Enhancement to buildings
MOJ,NOMS,06/03/2013,WIP - Acquisitions,HS Directorate Prisons Central,SMITHS DETECTION LTD,4845027,"43,200.00",Enhancement to buildings
MOJ,NOMS,06/03/2013,WIP - Acquisitions,Estates Capacity,KIER CONSTRUCTION LTD,4845036,"476,087.62",Enhancement to buildings
MOJ,NOMS,07/03/2013,WIP - Acquisitions,Estates Capacity,WATES CONSTRUCTION LTD,4819129,"229,689.60",Enhancement to buildings
MOJ,NOMS,07/03/2013,WIP - Acquisitions,Estates Capacity,KIER CONSTRUCTION LTD,4844804,"355,497.24",Enhancement to buildings
MOJ,NOMS,08/03/2013,WIP - Acquisitions,Estates Capacity,WATES CONSTRUCTION LTD,4840520,"256,436.40",Enhancement to buildings
MOJ,NOMS,08/03/2013,WIP - Acquisitions,Estates Capacity,KIER CONSTRUCTION LTD,4830942,"294,000.00",Enhancement to buildings
MOJ,NOMS,08/03/2013,WIP - Acquisitions,Estates Capacity,LEND LEASE CONSTRUCTION (EMEA) LTD,4848750,"324,344.40",Enhancement to buildings
MOJ,NOMS,08/03/2013,WIP - Acquisitions,Estates Capacity,WATES CONSTRUCTION LTD,4846517,"338,436.00",Enhancement to buildings
MOJ,NOMS,08/03/2013,WIP - Acquisitions,Estates Capacity,KIER CONSTRUCTION LTD,4848976,"400,174.45",Enhancement to buildings
MOJ,NOMS,11/03/2013,WIP - Acquisitions,Estates Capacity,VINCI CONSTRUCTION UK LTD,4848830,"100,850.40",Enhancement to buildings
MOJ,NOMS,11/03/2013,WIP - Acquisitions,Estates Capacity,WATES CONSTRUCTION LTD,4848763,"142,420.60",Enhancement to buildings
MOJ,NOMS,11/03/2013,WIP - Acquisitions,Estates Capacity,KIER CONSTRUCTION LTD,9703034,"206,142.00",Enhancement to buildings
MOJ,NOMS,12/03/2013,WIP - Acquisitions,Estates Capacity,ISG CONSTRUCTION LTD,4818246,"390,861.60",Enhancement to buildings
MOJ,NOMS,13/03/2013,WIP - Acquisitions,Estates Capacity,LORNE STEWART PLC,DM5000128/09A,"-168,684.74",Enhancement to buildings
MOJ,NOMS,13/03/2013,WIP - Acquisitions,Estates Capacity,LORNE STEWART PLC,4851080,"156,444.00",Enhancement to buildings
MOJ,NOMS,13/03/2013,WIP - Acquisitions,Estates Capacity,LORNE STEWART PLC,4842067,"321,448.12",Enhancement to buildings
MOJ,NOMS,15/03/2013,Buildings - Acquisitions,Wales Prisons Estate Management Group (WPEMG),GALLIFORD TRY CONSTRUCTION LTD,4856352,"46,183.20",Enhancement to buildings
MOJ,NOMS,15/03/2013,WIP - Acquisitions,Estates Capacity,LORNE STEWART PLC,4856672,"95,874.49",Enhancement to buildings
MOJ,NOMS,18/03/2013,WIP - Acquisitions,Estates Capacity,KIER CONSTRUCTION LTD,4853862,"52,633.20",Enhancement to buildings
MOJ,NOMS,18/03/2013,WIP - Acquisitions,Estates Capacity,INTERSERVE CONSTRUCTION LTD,4851269,"65,852.40",Enhancement to buildings
MOJ,NOMS,18/03/2013,WIP - Acquisitions,Estates Capacity,INTERSERVE CONSTRUCTION LTD,4856785,"199,800.00",Enhancement to buildings
MOJ,NOMS,18/03/2013,WIP - Acquisitions,Estates Capacity,LEND LEASE CONSTRUCTION (EMEA) LTD,4844770,"201,190.80",Enhancement to buildings
MOJ,NOMS,18/03/2013,WIP - Acquisitions,Estates Capacity,INTERSERVE CONSTRUCTION LTD,4860488,"416,896.84",Enhancement to buildings
MOJ,NOMS,18/03/2013,WIP - Acquisitions,Estates Capacity,WATES CONSTRUCTION LTD,4860388,"491,048.40",Enhancement to buildings
MOJ,NOMS,19/03/2013,WIP - Acquisitions,Estates Capacity,INTERSERVE CONSTRUCTION LTD,4862403,"206,181.71",Enhancement to buildings
MOJ,NOMS,19/03/2013,WIP - Acquisitions,Estates Capacity,INTERSERVE CONSTRUCTION LTD,4860800,"257,233.32",Enhancement to buildings
MOJ,NOMS,20/03/2013,WIP - Acquisitions,Estates Capacity,KIER CONSTRUCTION LTD,4862121,"38,713.99",Enhancement to buildings
MOJ,NOMS,20/03/2013,WIP - Acquisitions,Estates Capacity,GALLIFORD TRY CONSTRUCTION LTD,4856570,"112,243.58",Enhancement to buildings
MOJ,NOMS,20/03/2013,WIP - Acquisitions,Estates Capacity,ISG CONSTRUCTION LTD,4850192,"134,242.32",Enhancement to buildings
MOJ,NOMS,20/03/2013,WIP - Acquisitions,Estates Capacity,GALLIFORD TRY CONSTRUCTION LTD,4863420,"135,203.59",Enhancement to buildings
MOJ,NOMS,20/03/2013,WIP - Acquisitions,Estates Capacity,LEND LEASE CONSTRUCTION (EMEA) LTD,4863825,"137,403.60",Enhancement to buildings
MOJ,NOMS,20/03/2013,WIP - Acquisitions,Estates Capacity,KIER CONSTRUCTION LTD,4863505,"158,296.80",Enhancement to buildings
MOJ,NOMS,20/03/2013,WIP - Acquisitions,Estates Capacity,INTERSERVE CONSTRUCTION LTD,4864056,"270,401.10",Enhancement to buildings
MOJ,NOMS,21/03/2013,WIP - Acquisitions,Estates Capacity,GREENWICH COUNCIL,4864818,"231,580.00",Enhancement to buildings
MOJ,NOMS,21/03/2013,WIP - Acquisitions,Estates Capacity,INTERSERVE CONSTRUCTION LTD,4860404,"1,454,709.00",Enhancement to buildings
MOJ,NOMS,22/03/2013,WIP - Acquisitions,Estates Capacity,HENRY BOOT CONSTRUCTION (U K) LTD,4867939,"48,000.00",Enhancement to buildings
MOJ,NOMS,22/03/2013,WIP - Acquisitions,Estates Capacity,GALLIFORD TRY CONSTRUCTION LTD,4809303,"63,344.54",Enhancement to buildings
MOJ,NOMS,22/03/2013,WIP - Acquisitions,Estates Capacity,LORNE STEWART PLC,4866154,"106,523.29",Enhancement to buildings
MOJ,NOMS,22/03/2013,WIP - Acquisitions,Estates Capacity,INTERSERVE CONSTRUCTION LTD,4867325,"132,000.00",Enhancement to buildings
MOJ,NOMS,22/03/2013,WIP - Acquisitions,Estates Capacity,KIER CONSTRUCTION LTD,4866872,"195,617.18",Enhancement to buildings
MOJ,NOMS,22/03/2013,WIP - Acquisitions,Estates Capacity,INTERSERVE CONSTRUCTION LTD,4849914,"319,128.00",Enhancement to buildings
MOJ,NOMS,25/03/2013,WIP - Acquisitions,Estates Capacity,VINCI CONSTRUCTION UK LTD,4863410,"143,176.01",Enhancement to buildings
MOJ,NOMS,25/03/2013,WIP - Acquisitions,Estates Capacity,VINCI CONSTRUCTION UK LTD,4863409,"200,190.76",Enhancement to buildings
MOJ,NOMS,25/03/2013,WIP - Acquisitions,Estates Capacity,ISG CONSTRUCTION LTD,4854931,"368,193.60",Enhancement to buildings
MOJ,NOMS,25/03/2013,WIP - Acquisitions,Estates Capacity,WATES CONSTRUCTION LTD,4857809,"441,843.31",Enhancement to buildings
MOJ,NOMS,25/03/2013,WIP - Acquisitions,Estates Capacity,INTERSERVE CONSTRUCTION LTD,4869443,"696,233.80",Enhancement to buildings
MOJ,NOMS,26/03/2013,WIP - Acquisitions,Estates Capacity,INTERSERVE CONSTRUCTION LTD,DMVFE35369,"-206,181.71",Enhancement to buildings
MOJ,NOMS,26/03/2013,WIP - Acquisitions,HS Directorate Prisons Central,SMITHS DETECTION LTD,4869842,"48,108.00",Enhancement to buildings
MOJ,NOMS,26/03/2013,WIP - Acquisitions,Estates Capacity,SHEPHERD CONSTRUCTION LTD,4856691,"67,081.20",Enhancement to buildings
MOJ,NOMS,26/03/2013,WIP - Acquisitions,HS Directorate Prisons Central,SMITHS DETECTION LTD,4869841,"124,320.00",Enhancement to buildings
MOJ,NOMS,26/03/2013,WIP - Acquisitions,Estates Capacity,WATES CONSTRUCTION LTD,4870452,"126,002.04",Enhancement to buildings
MOJ,NOMS,26/03/2013,WIP - Acquisitions,Estates Capacity,INTERSERVE CONSTRUCTION LTD,4872201,"206,181.71",Enhancement to buildings
MOJ,NOMS,26/03/2013,WIP - Acquisitions,Estates Capacity,INTERSERVE CONSTRUCTION LTD,4864052,"345,107.56",Enhancement to buildings
MOJ,NOMS,27/03/2013,WIP - Acquisitions,Estates Capacity,KIER CONSTRUCTION LTD,4871480,"113,047.20",Enhancement to buildings
MOJ,NOMS,27/03/2013,WIP - Acquisitions,Estates Capacity,WATES CONSTRUCTION LTD,4848114,"133,296.07",Enhancement to buildings
MOJ,NOMS,27/03/2013,WIP - Acquisitions,Estates Capacity,LORNE STEWART PLC,4874797,"310,773.60",Enhancement to buildings
MOJ,NOMS,27/03/2013,WIP - Acquisitions,Estates Capacity,GREENWICH COUNCIL,4869689,"690,780.00",Enhancement to buildings
MOJ,NOMS,28/03/2013,WIP - Acquisitions,Estates Capacity,INTERSERVE CONSTRUCTION LTD,4876074,"36,000.00",Enhancement to buildings
MOJ,NOMS,06/03/2013,Office Equipment Purchases Under 10k,Northumberland,VINCI CONSTRUCTION UK LTD,4842260,"45,272.98","Equipment, furniture and fittings"
MOJ,NOMS,14/03/2013,Office Equipment Purchases Under 10k,Isle of Wight,RACKLINE LTD,9661298,"31,026.00","Equipment, furniture and fittings"
MOJ,NOMS,20/03/2013,External Telecom Charges,Stocken,THE LIFE CHANNEL GROUP LTD,4866829,"35,460.00",External telecom charges
MOJ,NOMS,05/03/2013,Structural works / maintenance - Fees & professional services,Estates Capacity,FAITHFUL & GOULD,4836486,"31,011.66",Fees for professional services for major maintenance on prison estate
MOJ,NOMS,11/03/2013,Structural works / maintenance - Fees & professional services,Estates Capacity,FAITHFUL & GOULD,4848079,"30,700.42",Fees for professional services for major maintenance on prison estate
MOJ,NOMS,15/03/2013,Professional works advice / services,Isis,MITIE JUSTICE LTD,4810041,"32,514.00",Fees for professional services for major maintenance on prison estate
MOJ,NOMS,18/03/2013,Professional works advice / services,Brixton,MITIE JUSTICE LTD,4824697,"29,595.88",Fees for professional services for major maintenance on prison estate
MOJ,NOMS,18/03/2013,Professional works advice / services,Brixton,MITIE JUSTICE LTD,4860117,"30,842.11",Fees for professional services for major maintenance on prison estate
MOJ,NOMS,21/03/2013,Structural works / maintenance - Fees & professional services,Estates Capacity,BUILDING RESEARCH ESTABLISHMENT,4844362,"38,014.80",Fees for professional services for major maintenance on prison estate
MOJ,NOMS,25/03/2013,Structural works / maintenance - Fees & professional services,Estates Capacity,BIS DEPARTMENT FOR BUSINESS INNOVATION & SKILLS,4869476,"144,000.00",Fees for professional services for major maintenance on prison estate
MOJ,NOMS,01/03/2013,Other Fuels,Stocken,PACE FUELCARE LTD,4837337,"26,461.40",Fuel utility costs
MOJ,NOMS,04/03/2013,Other Fuels,Coldingley,HARVEST ENERGY LTD,9674034,"29,382.19",Fuel utility costs
MOJ,NOMS,06/03/2013,Other Fuels,Sudbury,HARVEST ENERGY LTD,4847061,"30,149.53",Fuel utility costs
MOJ,NOMS,14/03/2013,Other Fuels,Sudbury,HARVEST ENERGY LTD,4854020,"30,221.74",Fuel utility costs
MOJ,NOMS,15/03/2013,Other Fuels,Stocken,PACE FUELCARE LTD,4854067,"26,782.51",Fuel utility costs
MOJ,NOMS,21/03/2013,Other Fuels,Coldingley,HARVEST ENERGY LTD,4868417,"29,166.17",Fuel utility costs
MOJ,NOMS,22/03/2013,Other Fuels,Transport Group,HARVEST ENERGY LTD,4866147,"28,209.60",Fuel utility costs
MOJ,NOMS,25/03/2013,Other Fuels,Stocken,PACE FUELCARE LTD,4868402,"25,986.94",Fuel utility costs
MOJ,NOMS,25/03/2013,Other Fuels,Wayland,COAL 4 ENERGY LTD,9690584,"27,314.82",Fuel utility costs
MOJ,NOMS,27/03/2013,Other Fuels,Stocken,PACE FUELCARE LTD,4873232,"25,994.21",Fuel utility costs
MOJ,NOMS,06/03/2013,Gas,Wealstun,GDF SUEZ SALES LTD (GAS),4845123,"66,157.15",Gas utility costs
MOJ,NOMS,25/03/2013,Gas,Littlehey,CORONA ENERGY RETAIL 4 LTD,4858009,"-162,948.35",Gas utility costs
MOJ,NOMS,25/03/2013,Gas,Oakwood,CORONA ENERGY RETAIL 4 LTD,4858009,"-37,570.40",Gas utility costs
MOJ,NOMS,25/03/2013,Gas,Aylesbury,CORONA ENERGY RETAIL 4 LTD,4858009,"28,372.58",Gas utility costs
MOJ,NOMS,25/03/2013,Gas,Styal,CORONA ENERGY RETAIL 4 LTD,4858009,"29,128.26",Gas utility costs
MOJ,NOMS,25/03/2013,Gas,Hindley,CORONA ENERGY RETAIL 4 LTD,4858009,"29,745.65",Gas utility costs
MOJ,NOMS,25/03/2013,Gas,Durham,CORONA ENERGY RETAIL 4 LTD,4858009,"31,352.46",Gas utility costs
MOJ,NOMS,25/03/2013,Gas,Wymott,CORONA ENERGY RETAIL 4 LTD,4858009,"31,782.36",Gas utility costs
MOJ,NOMS,25/03/2013,Gas,Winchester,CORONA ENERGY RETAIL 4 LTD,4858009,"32,096.99",Gas utility costs
MOJ,NOMS,25/03/2013,Gas,Brixton,CORONA ENERGY RETAIL 4 LTD,4858009,"32,596.93",Gas utility costs
MOJ,NOMS,25/03/2013,Gas,Portland,CORONA ENERGY RETAIL 4 LTD,4858009,"33,670.26",Gas utility costs
MOJ,NOMS,25/03/2013,Gas,Bristol,CORONA ENERGY RETAIL 4 LTD,4858009,"34,600.27",Gas utility costs
MOJ,NOMS,25/03/2013,Gas,Lancaster Farms,CORONA ENERGY RETAIL 4 LTD,4858009,"35,118.06",Gas utility costs
MOJ,NOMS,25/03/2013,Gas,Everthorpe,CORONA ENERGY RETAIL 4 LTD,4858009,"35,570.72",Gas utility costs
MOJ,NOMS,25/03/2013,Gas,Brinsford,CORONA ENERGY RETAIL 4 LTD,4858009,"35,851.91",Gas utility costs
MOJ,NOMS,25/03/2013,Gas,Swinfen Hall,CORONA ENERGY RETAIL 4 LTD,4858009,"36,372.94",Gas utility costs
MOJ,NOMS,25/03/2013,Gas,Ford,CORONA ENERGY RETAIL 4 LTD,4858009,"37,857.71",Gas utility costs
MOJ,NOMS,25/03/2013,Gas,Wakefield,CORONA ENERGY RETAIL 4 LTD,4858009,"38,181.77",Gas utility costs
MOJ,NOMS,25/03/2013,Gas,Whitemoor,CORONA ENERGY RETAIL 4 LTD,4858009,"38,216.17",Gas utility costs
MOJ,NOMS,25/03/2013,Gas,Nottingham,CORONA ENERGY RETAIL 4 LTD,4858009,"38,505.95",Gas utility costs
MOJ,NOMS,25/03/2013,Gas,Haverigg,CORONA ENERGY RETAIL 4 LTD,4858009,"39,106.13",Gas utility costs
MOJ,NOMS,25/03/2013,Gas,Holloway,CORONA ENERGY RETAIL 4 LTD,4858009,"39,739.44",Gas utility costs
MOJ,NOMS,25/03/2013,Gas,Isle of Wight,CORONA ENERGY RETAIL 4 LTD,9716018,"40,686.18",Gas utility costs
MOJ,NOMS,25/03/2013,Gas,Maidstone,CORONA ENERGY RETAIL 4 LTD,4858009,"41,304.66",Gas utility costs
MOJ,NOMS,25/03/2013,Gas,Mount (The),CORONA ENERGY RETAIL 4 LTD,4858009,"41,616.77",Gas utility costs
MOJ,NOMS,25/03/2013,Gas,Garth,CORONA ENERGY RETAIL 4 LTD,4858009,"41,713.93",Gas utility costs
MOJ,NOMS,25/03/2013,Gas,Rochester,CORONA ENERGY RETAIL 4 LTD,4858009,"42,297.32",Gas utility costs
MOJ,NOMS,25/03/2013,Gas,Long Lartin,CORONA ENERGY RETAIL 4 LTD,4858009,"43,305.97",Gas utility costs
MOJ,NOMS,25/03/2013,Gas,Glen Parva,CORONA ENERGY RETAIL 4 LTD,4858009,"43,908.16",Gas utility costs
MOJ,NOMS,25/03/2013,Gas,Grendon,CORONA ENERGY RETAIL 4 LTD,4858009,"43,909.30",Gas utility costs
MOJ,NOMS,25/03/2013,Gas,Stoke Heath,CORONA ENERGY RETAIL 4 LTD,4858009,"44,975.46",Gas utility costs
MOJ,NOMS,25/03/2013,Gas,Lindholme,CORONA ENERGY RETAIL 4 LTD,4858009,"45,391.58",Gas utility costs
MOJ,NOMS,25/03/2013,Gas,Woodhill,CORONA ENERGY RETAIL 4 LTD,4858009,"48,342.00",Gas utility costs
MOJ,NOMS,25/03/2013,Gas,Ranby,CORONA ENERGY RETAIL 4 LTD,4858009,"48,441.61",Gas utility costs
MOJ,NOMS,25/03/2013,Gas,Onley,CORONA ENERGY RETAIL 4 LTD,4858009,"49,585.88",Gas utility costs
MOJ,NOMS,25/03/2013,Gas,Holme House,CORONA ENERGY RETAIL 4 LTD,4858009,"49,918.26",Gas utility costs
MOJ,NOMS,25/03/2013,Gas,Gartree,CORONA ENERGY RETAIL 4 LTD,4858009,"51,175.31",Gas utility costs
MOJ,NOMS,25/03/2013,Gas,Channings Wood,CORONA ENERGY RETAIL 4 LTD,4858009,"52,770.60",Gas utility costs
MOJ,NOMS,25/03/2013,Gas,Bullingdon,CORONA ENERGY RETAIL 4 LTD,4858009,"52,888.09",Gas utility costs
MOJ,NOMS,25/03/2013,Gas,Manchester,CORONA ENERGY RETAIL 4 LTD,4858009,"53,453.03",Gas utility costs
MOJ,NOMS,25/03/2013,Gas,Moorland,CORONA ENERGY RETAIL 4 LTD,4858009,"54,218.22",Gas utility costs
MOJ,NOMS,25/03/2013,Gas,Verne (The),CORONA ENERGY RETAIL 4 LTD,4858009,"54,639.84",Gas utility costs
MOJ,NOMS,25/03/2013,Gas,Belmarsh,CORONA ENERGY RETAIL 4 LTD,4858009,"56,197.19",Gas utility costs
MOJ,NOMS,25/03/2013,Gas,Kirkham,CORONA ENERGY RETAIL 4 LTD,4858009,"58,274.86",Gas utility costs
MOJ,NOMS,25/03/2013,Gas,Frankland,CORONA ENERGY RETAIL 4 LTD,4858009,"58,812.92",Gas utility costs
MOJ,NOMS,25/03/2013,Gas,Highdown,CORONA ENERGY RETAIL 4 LTD,4858009,"59,423.98",Gas utility costs
MOJ,NOMS,25/03/2013,Gas,Feltham,CORONA ENERGY RETAIL 4 LTD,4858009,"65,655.47",Gas utility costs
MOJ,NOMS,25/03/2013,Gas,Wandsworth,CORONA ENERGY RETAIL 4 LTD,4858009,"66,584.56",Gas utility costs
MOJ,NOMS,25/03/2013,Gas,G4S Birmingham,CORONA ENERGY RETAIL 4 LTD,4858009,"67,474.76",Gas utility costs
MOJ,NOMS,25/03/2013,Gas,Featherstone,CORONA ENERGY RETAIL 4 LTD,4858009,"71,341.58",Gas utility costs
MOJ,NOMS,25/03/2013,Gas,Northumberland,CORONA ENERGY RETAIL 4 LTD,4858009,"75,742.97",Gas utility costs
MOJ,NOMS,25/03/2013,Gas,Hewell,CORONA ENERGY RETAIL 4 LTD,4858009,"76,370.71",Gas utility costs
MOJ,NOMS,25/03/2013,Gas,Highpoint,CORONA ENERGY RETAIL 4 LTD,4858009,"81,742.43",Gas utility costs
MOJ,NOMS,25/03/2013,Gas,Wormwood Scrubs,CORONA ENERGY RETAIL 4 LTD,4858009,"94,633.81",Gas utility costs
MOJ,NOMS,25/03/2013,Gas,Leyhill,CORONA ENERGY RETAIL 4 LTD,4858009,"135,002.78",Gas utility costs
MOJ,NOMS,25/03/2013,Gas,Wealstun,CORONA ENERGY RETAIL 4 LTD,4858009,"137,351.54",Gas utility costs
MOJ,NOMS,25/03/2013,Gas,Sheppey Clustered Services,CORONA ENERGY RETAIL 4 LTD,4858009,"151,465.91",Gas utility costs
MOJ,NOMS,06/03/2013,Resource Grants / Grant-in-Aid,Commercial Development Group,THAMES VALLEY PARTNERSHIP (THE),4835066,"32,800.00",Grant payments to voluntary and community sector organisations
MOJ,NOMS,06/03/2013,Resource Grants / Grant-in-Aid,Commercial Development Group,THIRD SECTOR CONSORTIA MANAGEMENT LLP,4847411,"50,000.00",Grant payments to voluntary and community sector organisations
MOJ,NOMS,13/03/2013,Resource Grants / Grant-in-Aid,Commercial Development Group,CLINKS,4851073,"30,000.00",Grant payments to voluntary and community sector organisations
MOJ,NOMS,13/03/2013,Resource Grants / Grant-in-Aid,Commercial Development Group,PRAXIS COMMUNITY PROJECTS,4853637,"30,831.00",Grant payments to voluntary and community sector organisations
MOJ,NOMS,21/03/2013,Resource Grants / Grant-in-Aid,Commercial Development Group,CLINKS,4856671,"50,000.00",Grant payments to voluntary and community sector organisations
MOJ,NOMS,28/03/2013,Resource Grants / Grant-in-Aid,Commercial Development Group,CLINKS,4874139,"50,000.00",Grant payments to voluntary and community sector organisations
MOJ,NOMS,25/03/2013,Probation - Approved Premises,Voluntary Approved Premises,ASHLEY HOUSE,4860846,"41,928.75",Grant to voluntary approved probation premises
MOJ,NOMS,25/03/2013,Probation - Approved Premises,Voluntary Approved Premises,ST VINCENT DE PAUL SOCIETY REF ST CHRISTOPHERS,4860853,"48,442.75",Grant to voluntary approved probation premises
MOJ,NOMS,25/03/2013,Probation - Approved Premises,Voluntary Approved Premises,HESTIA HOUSING SUPPORT CO LTD REF BATTERSEA & STREATHAM,4860849,"48,859.67",Grant to voluntary approved probation premises
MOJ,NOMS,25/03/2013,Probation - Approved Premises,Voluntary Approved Premises,CARDIGAN HOUSE APPROVED PREMISE,4860847,"52,528.33",Grant to voluntary approved probation premises
MOJ,NOMS,25/03/2013,Probation - Approved Premises,Voluntary Approved Premises,ST VINCENT DE PAUL SOCIETY REF OZANAM HOUSE,4860852,"52,695.08",Grant to voluntary approved probation premises
MOJ,NOMS,25/03/2013,Probation - Approved Premises,Voluntary Approved Premises,ADELAIDE HOUSE,4860844,"53,445.50",Grant to voluntary approved probation premises
MOJ,NOMS,25/03/2013,Probation - Approved Premises,Voluntary Approved Premises,ST JOHN'S APPROVED PREMISES,4860854,"53,945.75",Grant to voluntary approved probation premises
MOJ,NOMS,25/03/2013,Probation - Approved Premises,Voluntary Approved Premises,WEST LONDON MISSION REF KATHERINE HUGHES HOUSE,4860855,"54,612.75",Grant to voluntary approved probation premises
MOJ,NOMS,25/03/2013,Probation - Approved Premises,Voluntary Approved Premises,RIPON HOUSE,4860851,"58,364.83",Grant to voluntary approved probation premises
MOJ,NOMS,25/03/2013,Probation - Approved Premises,Voluntary Approved Premises,ELIZABETH FRY APPROVED PREMISES,4860848,"58,531.58",Grant to voluntary approved probation premises
MOJ,NOMS,25/03/2013,Probation - Approved Premises,Voluntary Approved Premises,HESTIA HOUSING SUPPORT CO LTD REF BATTERSEA & STREATHAM,4860850,"59,031.83",Grant to voluntary approved probation premises
MOJ,NOMS,27/03/2013,Probation - Approved Premises,Offender Management and Public Protection Group,LANGLEY HOUSE TRUST,4875658,"118,850.00",Grant to voluntary approved probation premises
MOJ,NOMS,27/03/2013,Contracted-out Medical services,Hindley,GREATER MANCHESTER WEST MENTAL HEALTH NHS FOUNDATION TRUST,4838702,"30,000.00",Healthcare services in prison; amount is recovered from the local Primary Care Trust
MOJ,NOMS,08/03/2013,Contracted-out Other Services,Isle of Wight,COFATHEC ENERGY SERVICES UK LTD,4847821,"46,524.80",Heat Energy Services
MOJ,NOMS,08/03/2013,Contracted-out Other Services,Blundeston,COFATHEC ENERGY SERVICES UK LTD,4848193,"61,810.18",Heat Energy Services
MOJ,NOMS,08/03/2013,Contracted-out Other Services,Deerbolt,COFATHEC ENERGY SERVICES UK LTD,4847974,"64,186.45",Heat Energy Services
MOJ,NOMS,08/03/2013,Contracted-out Other Services,Isle of Wight,COFATHEC ENERGY SERVICES UK LTD,4847739,"85,174.33",Heat Energy Services
MOJ,NOMS,08/03/2013,Contracted-out Other Services,Chelmsford,COFATHEC ENERGY SERVICES UK LTD,4848196,"85,841.38",Heat Energy Services
MOJ,NOMS,14/03/2013,Gas,Lewes,COFATHEC ENERGY SERVICES UK LTD,4848195,"60,885.85",Heat Energy Services
MOJ,NOMS,11/03/2013,Insurance,DD Business and Provider Development,GALLAGHER BASSETT INTERNATIONAL LTD,4848847,"41,841.23",Insurance
MOJ,NOMS,01/03/2013,Contract IT Maintenance,MOJ Shared Services NOMS Delivery,METHODS CONSULTING LTD,4829467,"72,281.00",IT maintenance and support
MOJ,NOMS,05/03/2013,Contract IT Maintenance,Procurement Group,IBM DIRECT( UNITED KINGDOM) LTD,4840623,"37,814.00",IT maintenance and support
MOJ,NOMS,06/03/2013,Contract IT Maintenance,Isle of Wight,HP ENTERPRISE SERVICES UK LTD,4846127,"40,298.61",IT maintenance and support
MOJ,NOMS,12/03/2013,Contract IT Maintenance,MoJ ICT,STERIA LTD,4831692,"90,606.01",IT maintenance and support
MOJ,NOMS,13/03/2013,Contract IT Maintenance,NOMIS Programme,ORACLE CORPORATION U K LTD,4857003,"35,335.23",IT maintenance and support
MOJ,NOMS,13/03/2013,Contract IT Maintenance,NOMIS Programme,HOME OFFICE,4856508,"382,421.41",IT maintenance and support
MOJ,NOMS,19/03/2013,Contract IT Maintenance,MOJ Shared Services NOMS Delivery,HP ENTERPRISE SERVICES UK LTD,4862485,"739,988.89",IT maintenance and support
MOJ,NOMS,25/03/2013,Contract IT Maintenance,HOPS Payroll Charge,LOGICA CMG (UK) LTD,4847472,"43,203.23",IT maintenance and support
MOJ,NOMS,26/03/2013,Contract IT Maintenance,MOJ Shared Services NOMS Delivery,METHODS CONSULTING LTD,4863884,"60,430.36",IT maintenance and support
MOJ,NOMS,27/03/2013,Contract IT Maintenance,MOJ Shared Services NOMS Delivery,ORACLE CORPORATION U K LTD,4875669,"53,363.25",IT maintenance and support
MOJ,NOMS,28/03/2013,Contract IT Maintenance,MoJ ICT,STERIA LTD,4869278,"80,595.56",IT maintenance and support
MOJ,NOMS,28/03/2013,Contract IT Maintenance,MoJ ICT,MINISTRY OF JUSTICE,4876729,"133,574.14",IT maintenance and support
MOJ,NOMS,28/03/2013,Contract IT Maintenance,MOJ Shared Services NOMS Delivery,ORACLE CORPORATION U K LTD,4875682,"229,111.56",IT maintenance and support
MOJ,NOMS,28/03/2013,Contract IT Maintenance,MOJ Shared Services NOMS Delivery,ORACLE CORPORATION U K LTD,4875660,"1,320,146.86",IT maintenance and support
MOJ,NOMS,28/03/2013,Contract IT Maintenance,MOJ Shared Services NOMS Delivery,ORACLE CORPORATION U K LTD,4875666,"1,911,457.68",IT maintenance and support
MOJ,NOMS,28/03/2013,Contract IT Maintenance,MOJ Shared Services NOMS Delivery,ORACLE CORPORATION U K LTD,4875665,"2,509,448.15",IT maintenance and support
MOJ,NOMS,28/03/2013,Contract IT Maintenance,MoJ ICT,MINISTRY OF JUSTICE,4876728,"3,824,983.09",IT maintenance and support
MOJ,NOMS,28/03/2013,Contract IT Maintenance,MoJ ICT,MINISTRY OF JUSTICE,4876731,"4,186,067.15",IT maintenance and support
MOJ,NOMS,22/03/2013,Accruals - Goods & services,MOJ Shared Services NOMS Delivery,CAPITA TRANSLATION & INTERPRETING,4838845,"2,136,114.40",Language services
MOJ,NOMS,15/03/2013,Legal Representation,Director PSP Front Line Centrally Managed,HER MAJESTY'S COURTS SERVICE,4856583,"36,621.67",Legal representation
MOJ,NOMS,21/03/2013,Legal Representation,Insurance / Loan Contracts,TREASURY SOLICITORS,4862378,"50,808.88",Legal representation
MOJ,NOMS,27/03/2013,Legal Representation,MOJ Shared Services NOMS Delivery,TREASURY SOLICITORS,4875640,"1,160,528.29",Legal representation
MOJ,NOMS,01/03/2013,Library Fees,Bure,NORFOLK COUNTY COUNCIL,14447925,"26,869.40",Library fees
MOJ,NOMS,05/03/2013,Contracted-out Library,Morton Hall,LINCOLNSHIRE COUNTY COUNCIL,4799639,"26,175.60",Library services 
MOJ,NOMS,05/03/2013,Contracted-out Library,Canterbury,KENT COUNTY COUNCIL,4842308,"37,543.00",Library services 
MOJ,NOMS,08/03/2013,Contracted-out Library,East Sutton Park,KENT COUNTY COUNCIL (KCS),4842309,"25,003.00",Library services 
MOJ,NOMS,08/03/2013,Contracted-out Library,Blantyre House,KENT COUNTY COUNCIL (KCS),4842310,"25,003.00",Library services 
MOJ,NOMS,08/03/2013,Contracted-out Library,Lincoln,LINCOLNSHIRE COUNTY COUNCIL,4799640,"63,071.40",Library services 
MOJ,NOMS,14/03/2013,Contracted-out Library,Brixton,LONDON BOROUGH OF LAMBETH,4856937,"39,156.00",Library services 
MOJ,NOMS,14/03/2013,Contracted-out Library,Dover,KENT COUNTY COUNCIL,4856994,"40,122.70",Library services 
MOJ,NOMS,15/03/2013,Contracted-out Library,Ranby,NOTTINGHAMSHIRE COUNTY COUNCIL,4810520,"72,293.00",Library services 
MOJ,NOMS,19/03/2013,Contracted-out Library,Maidstone,KENT COUNTY COUNCIL,4842383,"68,776.00",Library services 
MOJ,NOMS,28/03/2013,Contracted-out Library,Sheppey Clustered Services,KENT COUNTY COUNCIL,4856993,"233,875.00",Library services 
MOJ,NOMS,01/03/2013,"New structural works, structural maintenance and equipment",Estates Capacity,VINCI CONSTRUCTION UK LTD,4839432,"259,200.00",Major maintenance on prison estate
MOJ,NOMS,01/03/2013,"New structural works, structural maintenance and equipment",Estates Capacity,VINCI CONSTRUCTION UK LTD,4839433,"384,000.00",Major maintenance on prison estate
MOJ,NOMS,05/03/2013,"New structural works, structural maintenance and equipment",TSS West Midlands Area,J TOMLINSON LTD,4844824,"25,959.55",Major maintenance on prison estate
MOJ,NOMS,05/03/2013,"New structural works, structural maintenance and equipment",Estates Capacity,WATES CONSTRUCTION LTD,4840521,"203,655.60",Major maintenance on prison estate
MOJ,NOMS,06/03/2013,"New structural works, structural maintenance and equipment",DDC East Midlands,TURNER ENGINE POWERED SERVICES,4844162,"27,320.46",Major maintenance on prison estate
MOJ,NOMS,06/03/2013,"New structural works, structural maintenance and equipment",DDC East Midlands,TRAKA PLC,4754005,"34,600.14",Major maintenance on prison estate
MOJ,NOMS,06/03/2013,"New structural works, structural maintenance and equipment",DDC East Midlands,TRAKA PLC,4757468,"55,768.80",Major maintenance on prison estate
MOJ,NOMS,06/03/2013,"New structural works, structural maintenance and equipment",DDC East of England,PENTACO CONSTRUCTION LTD,4825308,"57,935.45",Major maintenance on prison estate
MOJ,NOMS,06/03/2013,"New structural works, structural maintenance and equipment",Durham,VINCI CONSTRUCTION UK LTD,4842120,"143,392.80",Major maintenance on prison estate
MOJ,NOMS,08/03/2013,"New structural works, structural maintenance and equipment",DDC East of England,ADLER & ALLAN LTD,4848519,"31,057.68",Major maintenance on prison estate
MOJ,NOMS,08/03/2013,"New structural works, structural maintenance and equipment",DDC East of England,PENTACO CONSTRUCTION LTD,4845288,"94,584.94",Major maintenance on prison estate
MOJ,NOMS,11/03/2013,"New structural works, structural maintenance and equipment",Feltham,EDMUNDSON ELECTRICAL LTD,4851779,"31,983.60",Major maintenance on prison estate
MOJ,NOMS,11/03/2013,"New structural works, structural maintenance and equipment",TSS West Midlands Area,SITEC INTERIORS LTD,4845033,"47,018.53",Major maintenance on prison estate
MOJ,NOMS,11/03/2013,"New structural works, structural maintenance and equipment",Estates Capacity,KIER CONSTRUCTION LTD,4844803,"205,348.80",Major maintenance on prison estate
MOJ,NOMS,11/03/2013,"New structural works, structural maintenance and equipment",Estates Capacity,HENRY BOOT CONSTRUCTION (U K) LTD,4850984,"218,667.58",Major maintenance on prison estate
MOJ,NOMS,11/03/2013,"New structural works, structural maintenance and equipment",Estates Capacity,KIER CONSTRUCTION LTD,4850992,"267,000.00",Major maintenance on prison estate
MOJ,NOMS,11/03/2013,"New structural works, structural maintenance and equipment",Estates Capacity,ISG CONSTRUCTION LTD,4851270,"401,211.60",Major maintenance on prison estate
MOJ,NOMS,12/03/2013,"New structural works, structural maintenance and equipment",DDC East Midlands,HERBERT BAGGALEY CONSTRUCTION LTD,4804382,"52,850.23",Major maintenance on prison estate
MOJ,NOMS,12/03/2013,"New structural works, structural maintenance and equipment",Estates Capacity,KIER CONSTRUCTION LTD,4852074,"78,000.00",Major maintenance on prison estate
MOJ,NOMS,12/03/2013,"New structural works, structural maintenance and equipment",Whitemoor,PRINCEBUILD,4852388,"107,886.12",Major maintenance on prison estate
MOJ,NOMS,13/03/2013,"New structural works, structural maintenance and equipment",DDC East of England,PENTACO CONSTRUCTION LTD,4845284,"34,838.04",Major maintenance on prison estate
MOJ,NOMS,13/03/2013,"New structural works, structural maintenance and equipment",Estates Capacity,WATES CONSTRUCTION LTD,4848115,"81,344.64",Major maintenance on prison estate
MOJ,NOMS,13/03/2013,"New structural works, structural maintenance and equipment",Estates Capacity,VINCI CONSTRUCTION UK LTD,4854927,"301,176.00",Major maintenance on prison estate
MOJ,NOMS,14/03/2013,"New structural works, structural maintenance and equipment",Hull,FOLKNOLL SERVICES,4854310,"-25,892.16",Major maintenance on prison estate
MOJ,NOMS,14/03/2013,"New structural works, structural maintenance and equipment",Hull,FOLKNOLL SERVICES,4846601,"25,892.16",Major maintenance on prison estate
MOJ,NOMS,14/03/2013,"New structural works, structural maintenance and equipment",Hull,FOLKNOLL SERVICES,9709236,"34,100.16",Major maintenance on prison estate
MOJ,NOMS,14/03/2013,Contracted-out Building Maintenance,Brixton,MITIE JUSTICE LTD,4824694,"82,164.48",Major maintenance on prison estate
MOJ,NOMS,18/03/2013,"New structural works, structural maintenance and equipment",DDC East Midlands,SHOEBRIDGE ENGINEERING LTD,4861766,"30,008.40",Major maintenance on prison estate
MOJ,NOMS,18/03/2013,Contracted-out Building Maintenance,Brixton,MITIE JUSTICE LTD,4824697,"45,186.37",Major maintenance on prison estate
MOJ,NOMS,18/03/2013,Contracted-out Building Maintenance,Brixton,MITIE JUSTICE LTD,4860117,"47,472.78",Major maintenance on prison estate
MOJ,NOMS,18/03/2013,Contracted-out Building Maintenance,Brixton,MITIE JUSTICE LTD,4860118,"211,850.97",Major maintenance on prison estate
MOJ,NOMS,20/03/2013,"New structural works, structural maintenance and equipment",Moorland,CROWN FLOORING LTD,4863901,"29,815.62",Major maintenance on prison estate
MOJ,NOMS,20/03/2013,"New structural works, structural maintenance and equipment",Springhill,CROWN FLOORING LTD,4864497,"30,877.92",Major maintenance on prison estate
MOJ,NOMS,20/03/2013,Contracted-out Plant and Equipment Maintenance,TSS Kent and Sussex,GLENBEIGH CONSTRUCTION LTD,4837056,"44,833.44",Major maintenance on prison estate
MOJ,NOMS,20/03/2013,"New structural works, structural maintenance and equipment",DDC North East,SMALLMAN & SON LTD,4864291,"48,000.00",Major maintenance on prison estate
MOJ,NOMS,20/03/2013,"New structural works, structural maintenance and equipment",Moorland,CROWN FLOORING LTD,4863903,"50,728.15",Major maintenance on prison estate
MOJ,NOMS,20/03/2013,"New structural works, structural maintenance and equipment",Estates Capacity,GALLIFORD TRY CONSTRUCTION LTD,4853924,"76,321.44",Major maintenance on prison estate
MOJ,NOMS,21/03/2013,"New structural works, structural maintenance and equipment",DDC East Midlands,TAYLOR PEARSON CONSTRUCTION LTD,4862010,"-28,908.68",Major maintenance on prison estate
MOJ,NOMS,21/03/2013,"New structural works, structural maintenance and equipment",DDC East Midlands,TAYLOR PEARSON CONSTRUCTION LTD,4862009,"28,728.68",Major maintenance on prison estate
MOJ,NOMS,21/03/2013,"New structural works, structural maintenance and equipment",DDC East Midlands,TAYLOR PEARSON CONSTRUCTION LTD,4848081,"28,908.68",Major maintenance on prison estate
MOJ,NOMS,21/03/2013,"New structural works, structural maintenance and equipment",DDC East Midlands,HERBERT BAGGALEY CONSTRUCTION LTD,4839883,"35,169.46",Major maintenance on prison estate
MOJ,NOMS,21/03/2013,"New structural works, structural maintenance and equipment",Haslar,ICP PROJECTS LTD,4867024,"36,938.96",Major maintenance on prison estate
MOJ,NOMS,22/03/2013,"New structural works, structural maintenance and equipment",DDC North East,SMALLMAN & SON LTD,4864290,"39,949.20",Major maintenance on prison estate
MOJ,NOMS,22/03/2013,"New structural works, structural maintenance and equipment",DDC East of England,PENTACO CONSTRUCTION LTD,4863698,"45,954.61",Major maintenance on prison estate
MOJ,NOMS,22/03/2013,"New structural works, structural maintenance and equipment",DDC East Midlands,TRAKA PLC,4863711,"56,921.68",Major maintenance on prison estate
MOJ,NOMS,22/03/2013,"New structural works, structural maintenance and equipment",DDC North East,COUNTY DURHAM PRIMARY CARE TRUST,4866977,"80,376.00",Major maintenance on prison estate
MOJ,NOMS,22/03/2013,"New structural works, structural maintenance and equipment",Estates Capacity,KIER CONSTRUCTION LTD,4866873,"200,737.20",Major maintenance on prison estate
MOJ,NOMS,22/03/2013,Contracted-out Building Maintenance,Estates Capacity,HOME OFFICE,4864737,"4,075,686.49",Major maintenance on prison estate
MOJ,NOMS,25/03/2013,"New structural works, structural maintenance and equipment",Estates Capacity,KIER CONSTRUCTION LTD,4869882,"140,400.00",Major maintenance on prison estate
MOJ,NOMS,26/03/2013,"New structural works, structural maintenance and equipment",DDC East Midlands,GLENBEIGH CONSTRUCTION LTD,4837566,"28,183.37",Major maintenance on prison estate
MOJ,NOMS,26/03/2013,"New structural works, structural maintenance and equipment",DDC East Midlands,CROWN FLOORING LTD,4870202,"58,530.00",Major maintenance on prison estate
MOJ,NOMS,26/03/2013,"New structural works, structural maintenance and equipment",Long Lartin,OUTDOOR HIGH LIGHT LTD,4871918,"125,248.80",Major maintenance on prison estate
MOJ,NOMS,27/03/2013,"New structural works, structural maintenance and equipment",Estates Capacity,WATES CONSTRUCTION LTD,4848116,"84,471.40",Major maintenance on prison estate
MOJ,NOMS,27/03/2013,"New structural works, structural maintenance and equipment",Estates Capacity,KIER CONSTRUCTION LTD,4844382,"196,702.80",Major maintenance on prison estate
MOJ,NOMS,28/03/2013,Contracted-out Building Maintenance,Rochester,CROWN FLOORING LTD,4876311,"32,253.12",Major maintenance on prison estate
MOJ,NOMS,28/03/2013,Contracted-out Building Maintenance,Dover,JACKSON H S & SON (FENCING) LTD,4866740,"33,579.19",Major maintenance on prison estate
MOJ,NOMS,28/03/2013,"New structural works, structural maintenance and equipment",Estates Capacity,SHEPHERD CONSTRUCTION LTD,4876210,"36,657.60",Major maintenance on prison estate
MOJ,NOMS,28/03/2013,"New structural works, structural maintenance and equipment",Estates Capacity,ISG CONSTRUCTION LTD,4861848,"46,700.99",Major maintenance on prison estate
MOJ,NOMS,28/03/2013,"New structural works, structural maintenance and equipment",Full Sutton,F C Y PLC,4876445,"46,872.00",Major maintenance on prison estate
MOJ,NOMS,28/03/2013,"New structural works, structural maintenance and equipment",DDC East Midlands,GLENBEIGH CONSTRUCTION LTD,4845261,"52,748.62",Major maintenance on prison estate
MOJ,NOMS,28/03/2013,Contracted-out Plant and Equipment Maintenance,TSS Kent and Sussex,GLENBEIGH CONSTRUCTION LTD,4873197,"64,957.80",Major maintenance on prison estate
MOJ,NOMS,28/03/2013,"New structural works, structural maintenance and equipment",Risley,GLENBEIGH CONSTRUCTION LTD,4873195,"110,473.68",Major maintenance on prison estate
MOJ,NOMS,01/03/2013,Clothing,Prison Industries,CARPENTER LTD,14442612,"27,574.85",Mattresses for prisoners' beds
MOJ,NOMS,01/03/2013,Clothing,Prison Industries,CARPENTER LTD,9646504,"41,303.00",Mattresses for prisoners' beds
MOJ,NOMS,01/03/2013,Clothing,Prison Industries,CARPENTER LTD,4832408,"87,716.16",Mattresses for prisoners' beds
MOJ,NOMS,14/03/2013,General Maintenance Materials,Wales Prisons Estate Management Group (WPEMG),GALLIFORD TRY CONSTRUCTION LTD,4856353,"42,420.00",Minor maintenance on prison estate
MOJ,NOMS,14/03/2013,General Maintenance Materials,Wales Prisons Estate Management Group (WPEMG),GALLIFORD TRY CONSTRUCTION LTD,4856356,"43,302.00",Minor maintenance on prison estate
MOJ,NOMS,15/03/2013,General Maintenance Materials,Wales Prisons Estate Management Group (WPEMG),GALLIFORD TRY CONSTRUCTION LTD,4856352,"74,552.40",Minor maintenance on prison estate
MOJ,NOMS,18/03/2013,General Maintenance Materials,New Hall,THE TEX SERVICES GROUP LTD,4860670,"97,573.20",Minor maintenance on prison estate
MOJ,NOMS,19/03/2013,General Maintenance Materials,Wetherby,AMARI PLASTICS PLC,4864460,"36,180.00",Minor maintenance on prison estate
MOJ,NOMS,27/03/2013,General Maintenance Materials,TSS Kent and Sussex,GLENBEIGH CONSTRUCTION LTD,4873193,"41,861.36",Minor maintenance on prison estate
MOJ,NOMS,28/03/2013,General Maintenance Materials,Full Sutton,FEWELL ENGINEERING LTD,4875750,"26,280.00",Minor maintenance on prison estate
MOJ,NOMS,06/03/2013,Occupational Health Services,ER and Reward Team,ATOS ORIGIN IT SERVICES UK LTD,4842426,"44,274.74",Occupational health services for staff
MOJ,NOMS,07/03/2013,Occupational Health Services,MOJ Project & ATOS,ATOS ORIGIN IT SERVICES UK LTD,4842427,"194,387.47",Occupational health services for staff
MOJ,NOMS,21/03/2013,Occupational Health Services,ER and Reward Team,ATOS ORIGIN IT SERVICES UK LTD,4863701,"59,185.20",Occupational health services for staff
MOJ,NOMS,22/03/2013,Occupational Health Services,MOJ Project & ATOS,ATOS ORIGIN IT SERVICES UK LTD,4863702,"171,089.06",Occupational health services for staff
MOJ,NOMS,13/03/2013,Rates and Ground Rents,Director of Finance Office,KNIGHT FRANK LLP,4853016,"38,700.00","Payment of rents, business rates and council tax"
MOJ,NOMS,14/03/2013,Rates and Ground Rents,HOPS Payroll Charge,LONDON & CAPITAL PROPERTIES LTD,4857146,"99,924.90","Payment of rents, business rates and council tax"
MOJ,NOMS,14/03/2013,Rates and Ground Rents,Estates Capacity,HOME OFFICE,4852423,"5,503,596.84","Payment of rents, business rates and council tax"
MOJ,NOMS,21/03/2013,Rates and Ground Rents,MOJ Shared Services NOMS Delivery,CYNCOED PROPERTY (CARDIFF) LTD,4865403,"31,200.00","Payment of rents, business rates and council tax"
MOJ,NOMS,25/03/2013,Rates and Ground Rents,Estates Capacity,HOME OFFICE,4870018,"51,258.19","Payment of rents, business rates and council tax"
MOJ,NOMS,26/03/2013,Rates and Ground Rents,MOJ Shared Services NOMS Delivery,DANMERC,4858649,"231,504.00","Payment of rents, business rates and council tax"
MOJ,NOMS,27/03/2013,Rates and Ground Rents,Shrewsbury,NETWORK RAIL,4871683,"31,769.56","Payment of rents, business rates and council tax"
MOJ,NOMS,19/03/2013,Secondments,Organisational Restructure Programme,HOME OFFICE,4860789,"50,388.24",Payments to external bodies for staff seconded to NOMS
MOJ,NOMS,22/03/2013,Secondments,Hindley,WIGAN COUNCIL,4666592,"186,546.00",Payments to external bodies for staff seconded to NOMS
MOJ,NOMS,07/03/2013,Payments to voluntary Organisations,DDC East of England,NACRO,4844624,"44,848.00",Payments to voluntary organisations
MOJ,NOMS,15/03/2013,Payments to voluntary Organisations,DDC East of England,ORMISTON CHILDREN & FAMILIES TRUST,4856763,"259,904.40",Payments to voluntary organisations
MOJ,NOMS,20/03/2013,Payments to voluntary Organisations,DDC East of England,NACRO,4787139,"44,848.00",Payments to voluntary organisations
MOJ,NOMS,20/03/2013,Payments to voluntary Organisations,DDC East of England,NACRO,4692885,"44,848.00",Payments to voluntary organisations
MOJ,NOMS,20/03/2013,Payments to voluntary Organisations,DDC East of England,NACRO,4787140,"51,110.90",Payments to voluntary organisations
MOJ,NOMS,21/03/2013,Payments to voluntary Organisations,DDC East of England,NACRO,4856758,"44,848.00",Payments to voluntary organisations
MOJ,NOMS,25/03/2013,Payments to voluntary Organisations,DDC East of England,NACRO,4818994,"44,848.00",Payments to voluntary organisations
MOJ,NOMS,25/03/2013,Payments to voluntary Organisations,DDC East of England,NACRO,4818995,"51,110.90",Payments to voluntary organisations
MOJ,NOMS,25/03/2013,Payments to voluntary Organisations,DDC East of England,NACRO,4856759,"51,110.90",Payments to voluntary organisations
MOJ,NOMS,26/03/2013,Payments to voluntary Organisations,DDC East of England,ORMISTON CHILDREN & FAMILIES TRUST,4871971,"241,569.60",Payments to voluntary organisations
MOJ,NOMS,14/03/2013,Phase 1,Information Management and Change Capability Group,MINISTRY OF JUSTICE,4856584,"25,251.13",Payroll services
MOJ,NOMS,14/03/2013,Phase 1,Information Management and Change Capability Group,MINISTRY OF JUSTICE,4856586,"46,227.34",Payroll services
MOJ,NOMS,15/03/2013,Phase 1,Information Management and Change Capability Group,MINISTRY OF JUSTICE,4856585,"64,580.89",Payroll services
MOJ,NOMS,19/03/2013,Drugs,Rochester,ALLIANCE HEALTHCARE,4862282,"29,470.78",Pharmaceutical items
MOJ,NOMS,19/03/2013,Drugs,Rochester,A A H PHARMACEUTICALS LTD,4862283,"42,322.25",Pharmaceutical items
MOJ,NOMS,04/03/2013,Plant and Machinery - Acquisitions,Holme House,HOMAG UK LTD,4841959,"47,853.60",Plant and machinery
MOJ,NOMS,05/03/2013,Plant and Machinery - Acquisitions,London Area ,TRAKA PLC,4844047,"25,701.30",Plant and machinery
MOJ,NOMS,07/03/2013,Plant and Machinery - Acquisitions,Ranby,J & B SEWING MACHINE CO LTD,4815683,"33,526.20",Plant and machinery
MOJ,NOMS,07/03/2013,Plant and Machinery - Acquisitions,London Area ,TRAKA PLC,4846007,"45,879.08",Plant and machinery
MOJ,NOMS,08/03/2013,Plant and Machinery - Acquisitions,DDC East of England,PENTACO CONSTRUCTION LTD,4845289,"45,457.85",Plant and machinery
MOJ,NOMS,08/03/2013,Plant and Machinery - Acquisitions,Styal,ELITE SYSTEMS (GB) LTD,4844813,"47,199.60",Plant and machinery
MOJ,NOMS,12/03/2013,Plant and Machinery - Acquisitions,Maidstone,DUPLO INTERNATIONAL LTD,4848090,"31,200.00",Plant and machinery
MOJ,NOMS,12/03/2013,Plant and Machinery - Acquisitions,South East Area,TRAKA PLC,4844024,"34,501.02",Plant and machinery
MOJ,NOMS,12/03/2013,Plant and Machinery - Acquisitions,South East Area,TRAKA PLC,4843983,"36,402.46",Plant and machinery
MOJ,NOMS,12/03/2013,Plant and Machinery - Acquisitions,Operational Services and Interventions Group,FALCON FOODSERVICE EQUIPMENT,4854653,"73,905.60",Plant and machinery
MOJ,NOMS,13/03/2013,Plant and Machinery - Acquisitions,South West Area,TRAKA PLC,4856900,"54,301.20",Plant and machinery
MOJ,NOMS,13/03/2013,Plant and Machinery - Acquisitions,TSS Kent and Sussex,GLENBEIGH CONSTRUCTION LTD,4845260,"63,690.68",Plant and machinery
MOJ,NOMS,14/03/2013,Plant and Machinery - Acquisitions,Soth West Area,TRAKA PLC,4856912,"43,702.37",Plant and machinery
MOJ,NOMS,15/03/2013,Plant and Machinery - Acquisitions,Operational Services and Interventions Group,FALCON FOODSERVICE EQUIPMENT,4832721,"88,064.40",Plant and machinery
MOJ,NOMS,20/03/2013,Plant and Machinery - Acquisitions,South East Area,TRAKA PLC,4844409,"26,469.36",Plant and machinery
MOJ,NOMS,20/03/2013,Plant and Machinery - Acquisitions,Operational Services and Interventions Group,FALCON FOODSERVICE EQUIPMENT,4863606,"48,868.80",Plant and machinery
MOJ,NOMS,20/03/2013,Plant and Machinery - Acquisitions,Operational Services and Interventions Group,FALCON FOODSERVICE EQUIPMENT,4863605,"76,894.80",Plant and machinery
MOJ,NOMS,21/03/2013,Plant and Machinery - Acquisitions,TSS West Midlands Area,TRAKA PLC,4863710,"42,869.32",Plant and machinery
MOJ,NOMS,21/03/2013,Plant and Machinery - Acquisitions,Ranby,HOMAG UK LTD,4861761,"115,680.00",Plant and machinery
MOJ,NOMS,22/03/2013,Plant and Machinery - Acquisitions,Operational Services and Interventions Group,FALCON FOODSERVICE EQUIPMENT,4869426,"35,235.60",Plant and machinery
MOJ,NOMS,22/03/2013,Plant and Machinery - Acquisitions,Isle of Wight,IVECO LTD,4847435,"60,013.20",Plant and machinery
MOJ,NOMS,25/03/2013,Plant and Machinery - Acquisitions,Operational Services and Interventions Group,FALCON FOODSERVICE EQUIPMENT,4815508,"34,888.80",Plant and machinery
MOJ,NOMS,25/03/2013,Plant and Machinery - Acquisitions,Operational Services and Interventions Group,FALCON FOODSERVICE EQUIPMENT,4811319,"34,888.80",Plant and machinery
MOJ,NOMS,25/03/2013,Plant and Machinery - Acquisitions,Operational Services and Interventions Group,FALCON FOODSERVICE EQUIPMENT,4802670,"63,049.20",Plant and machinery
MOJ,NOMS,25/03/2013,Plant and Machinery - Acquisitions,Operational Services and Interventions Group,FALCON FOODSERVICE EQUIPMENT,4811322,"73,068.00",Plant and machinery
MOJ,NOMS,25/03/2013,Plant and Machinery - Acquisitions,Leyhill,DEMI UK LTD,4856934,"79,200.00",Plant and machinery
MOJ,NOMS,25/03/2013,Plant and Machinery - Acquisitions,Operational Services and Interventions Group,FALCON FOODSERVICE EQUIPMENT,4802669,"94,808.40",Plant and machinery
MOJ,NOMS,26/03/2013,Plant and Machinery - Acquisitions,South East Area,TRAKA PLC,4867018,"36,464.62",Plant and machinery
MOJ,NOMS,26/03/2013,Plant and Machinery - Acquisitions,South East Area,TRAKA PLC,4866145,"37,456.96",Plant and machinery
MOJ,NOMS,26/03/2013,Plant and Machinery - Acquisitions,Operational Services and Interventions Group,FALCON FOODSERVICE EQUIPMENT,4869423,"51,313.20",Plant and machinery
MOJ,NOMS,27/03/2013,Plant and Machinery - Acquisitions,Leeds,INTELLIGENT FINISHING SYSTEMS LTD,4875673,"35,040.00",Plant and machinery
MOJ,NOMS,28/03/2013,Plant and Machinery - Acquisitions,Holme House,S C M GROUP (U K) LTD,4869885,"75,156.00",Plant and machinery
MOJ,NOMS,28/03/2013,Plant and Machinery - Acquisitions,Stoke Heath,DUGARD C LTD,4853923,"113,005.20",Plant and machinery
MOJ,NOMS,28/03/2013,Plant and Machinery - Acquisitions,Stoke Heath,ERCON FINISHING SYSTEMS LTD,4869945,"264,548.14",Plant and machinery
MOJ,NOMS,12/03/2013,Prison Shop Cost of Sales (No VAT),Retail Project Charges,EXEL EUROPE1 LTD,4848046,"200,807.87",Prison shop purchases where items are paid for by prisoners from their own funds at no cost to the taxpayer
MOJ,NOMS,12/03/2013,Prison Shop Cost of Sales,Retail Project Charges,EXEL EUROPE1 LTD,4848046,"395,595.42",Prison shop purchases where items are paid for by prisoners from their own funds at no cost to the taxpayer
MOJ,NOMS,19/03/2013,Prison Shop Cost of Sales (No VAT),Retail Project Charges,EXEL EUROPE1 LTD,4853298,"205,772.47",Prison shop purchases where items are paid for by prisoners from their own funds at no cost to the taxpayer
MOJ,NOMS,19/03/2013,Prison Shop Cost of Sales,Retail Project Charges,EXEL EUROPE1 LTD,4853298,"389,168.09",Prison shop purchases where items are paid for by prisoners from their own funds at no cost to the taxpayer
MOJ,NOMS,25/03/2013,Prison Shop Cost of Sales (No VAT),Retail Project Charges,EXEL EUROPE1 LTD,4869273,"205,277.57",Prison shop purchases where items are paid for by prisoners from their own funds at no cost to the taxpayer
MOJ,NOMS,25/03/2013,Prison Shop Cost of Sales,Retail Project Charges,EXEL EUROPE1 LTD,4869273,"424,523.84",Prison shop purchases where items are paid for by prisoners from their own funds at no cost to the taxpayer
MOJ,NOMS,25/03/2013,Contracted-out Prison Shop,Retail Project Charges,EXEL EUROPE1 LTD,4869269,"-26,605.11",Prison shops where items are paid for by prisoners from their own funds at no cost to the taxpayer
MOJ,NOMS,25/03/2013,Contracted-out Prison Shop,Retail Project Charges,EXEL EUROPE1 LTD,4869270,"1,198,792.00",Prison shops where items are paid for by prisoners from their own funds at no cost to the taxpayer
MOJ,NOMS,15/03/2013,Purchases from Internal Market,Prison Industries,AMARYLLIS LTD,4857860,"32,814.84",Prisoner clothing and equipment
MOJ,NOMS,04/03/2013,Contracted-out Escorts,Prisoner Escort & Custody Service (PECS),GEO AMEY PECS LTD,4842517,"2,358,041.80",Prisoner escort services 
MOJ,NOMS,04/03/2013,Contracted-out Escorts,Prisoner Escort & Custody Service (PECS),GEO AMEY PECS LTD,4842548,"2,879,603.57",Prisoner escort services 
MOJ,NOMS,05/03/2013,Contracted-out Escorts,Prisoner Escort & Custody Service (PECS),GEO AMEY PECS LTD,4842514,"38,674.69",Prisoner escort services 
MOJ,NOMS,06/03/2013,Contracted-out Escorts,Prisoner Escort & Custody Service (PECS),GEO AMEY PECS LTD,4842518,"2,314,887.79",Prisoner escort services 
MOJ,NOMS,25/03/2013,Contracted-out Escorts,Prisoner Escort & Custody Service (PECS),SERCO LTD,4863972,"3,400,295.95",Prisoner escort services 
MOJ,NOMS,04/03/2013,Contracted-out operation of prisons and detention centres,Parc,BRIDGEND CUSTODIAL SERVICES LTD,4841889,"31,413.42",Prisons and detention centres operated by an external provider
MOJ,NOMS,04/03/2013,Contracted-out operation of prisons and detention centres,Parc,BRIDGEND CUSTODIAL SERVICES LTD,4841888,"95,450.42",Prisons and detention centres operated by an external provider
MOJ,NOMS,05/03/2013,Contracted-out operation of prisons and detention centres,Altcourse,FAZAKERLEY PRISON SERVICES LTD,4821302,"-92,290.12",Prisons and detention centres operated by an external provider
MOJ,NOMS,05/03/2013,Contracted-out operation of prisons and detention centres,Altcourse,FAZAKERLEY PRISON SERVICES LTD,4843518,"33,514.30",Prisons and detention centres operated by an external provider
MOJ,NOMS,05/03/2013,Contracted-out operation of prisons and detention centres,Rye Hill,ONLEY PRISON SERVICES LTD,4843652,"38,034.75",Prisons and detention centres operated by an external provider
MOJ,NOMS,05/03/2013,Contracted-out operation of prisons and detention centres,Lowdham Grange,LOWDHAM GRANGE PRISON SERVICES LTD,4843607,"38,993.92",Prisons and detention centres operated by an external provider
MOJ,NOMS,05/03/2013,Contracted-out operation of prisons and detention centres,Forest Bank,AGECROFT PRISON MANAGEMENT LTD,4844959,"39,060.00",Prisons and detention centres operated by an external provider
MOJ,NOMS,05/03/2013,Contracted-out operation of prisons and detention centres,Lowdham Grange,LOWDHAM GRANGE PRISON SERVICES LTD,4843731,"41,721.12",Prisons and detention centres operated by an external provider
MOJ,NOMS,05/03/2013,Contracted-out operation of prisons and detention centres,Dovegate,MORETON PRISON SERVICES LTD,4843595,"48,020.40",Prisons and detention centres operated by an external provider
MOJ,NOMS,05/03/2013,Contracted-out operation of prisons and detention centres,Dovegate,MORETON PRISON SERVICES LTD,4843594,"64,357.17",Prisons and detention centres operated by an external provider
MOJ,NOMS,05/03/2013,Contracted-out operation of prisons and detention centres,Parc,BRIDGEND CUSTODIAL SERVICES LTD,4841886,"317,012.24",Prisons and detention centres operated by an external provider
MOJ,NOMS,05/03/2013,Contracted-out operation of prisons and detention centres,Altcourse,FAZAKERLEY PRISON SERVICES LTD,4844104,"318,773.00",Prisons and detention centres operated by an external provider
MOJ,NOMS,05/03/2013,Contracted-out operation of prisons and detention centres,Dovegate,MORETON PRISON SERVICES LTD,4843605,"576,085.67",Prisons and detention centres operated by an external provider
MOJ,NOMS,05/03/2013,Contracted-out operation of prisons and detention centres,Parc,BRIDGEND CUSTODIAL SERVICES LTD,4841885,"1,088,858.65",Prisons and detention centres operated by an external provider
MOJ,NOMS,06/03/2013,Contracted-out operation of prisons and detention centres,Forest Bank,AGECROFT PRISON MANAGEMENT LTD,4844956,"40,721.14",Prisons and detention centres operated by an external provider
MOJ,NOMS,06/03/2013,Contracted-out operation of prisons and detention centres,Parc,BRIDGEND CUSTODIAL SERVICES LTD,4841887,"313,387.95",Prisons and detention centres operated by an external provider
MOJ,NOMS,06/03/2013,Contracted-out operation of prisons and detention centres,Parc,BRIDGEND CUSTODIAL SERVICES LTD,4841884,"2,662,174.60",Prisons and detention centres operated by an external provider
MOJ,NOMS,07/03/2013,Contracted-out operation of prisons and detention centres,Peterborough,PETERBOROUGH PRISON MANAGEMENT LTD,4811323,"-109,768.96",Prisons and detention centres operated by an external provider
MOJ,NOMS,07/03/2013,Contracted-out operation of prisons and detention centres,Peterborough,PETERBOROUGH PRISON MANAGEMENT LTD,4811334,"27,623.33",Prisons and detention centres operated by an external provider
MOJ,NOMS,07/03/2013,Contracted-out operation of prisons and detention centres,Peterborough,PETERBOROUGH PRISON MANAGEMENT LTD,4811353,"28,051.73",Prisons and detention centres operated by an external provider
MOJ,NOMS,07/03/2013,Contracted-out operation of prisons and detention centres,Bronzefield,ASHFORD PRISON SERVICES LTD,4848217,"33,576.76",Prisons and detention centres operated by an external provider
MOJ,NOMS,07/03/2013,Contracted-out operation of prisons and detention centres,Peterborough,PETERBOROUGH PRISON MANAGEMENT LTD,4847970,"35,860.90",Prisons and detention centres operated by an external provider
MOJ,NOMS,07/03/2013,Contracted-out operation of prisons and detention centres,Peterborough,PETERBOROUGH PRISON MANAGEMENT LTD,4848212,"39,552.00",Prisons and detention centres operated by an external provider
MOJ,NOMS,07/03/2013,Contracted-out operation of prisons and detention centres,Peterborough,PETERBOROUGH PRISON MANAGEMENT LTD,4847969,"1,147,704.60",Prisons and detention centres operated by an external provider
MOJ,NOMS,07/03/2013,Contracted-out operation of prisons and detention centres,Peterborough,PETERBOROUGH PRISON MANAGEMENT LTD,4847971,"1,290,206.92",Prisons and detention centres operated by an external provider
MOJ,NOMS,08/03/2013,Contracted-out operation of prisons and detention centres,Peterborough,PETERBOROUGH PRISON MANAGEMENT LTD,4848186,"28,051.73",Prisons and detention centres operated by an external provider
MOJ,NOMS,08/03/2013,Contracted-out operation of prisons and detention centres,Peterborough,PETERBOROUGH PRISON MANAGEMENT LTD,4847968,"37,994.88",Prisons and detention centres operated by an external provider
MOJ,NOMS,08/03/2013,Contracted-out operation of prisons and detention centres,Bronzefield,ASHFORD PRISON SERVICES LTD,4848215,"57,750.84",Prisons and detention centres operated by an external provider
MOJ,NOMS,08/03/2013,Contracted-out operation of prisons and detention centres,Rye Hill,ONLEY PRISON SERVICES LTD,4844106,"1,429,355.30",Prisons and detention centres operated by an external provider
MOJ,NOMS,08/03/2013,Contracted-out operation of prisons and detention centres,Lowdham Grange,LOWDHAM GRANGE PRISON SERVICES LTD,4843608,"2,083,397.16",Prisons and detention centres operated by an external provider
MOJ,NOMS,08/03/2013,Contracted-out operation of prisons and detention centres,Ashfield,PUCKLECHURCH CUSTODIAL SERVICES LTD,4843604,"2,158,844.01",Prisons and detention centres operated by an external provider
MOJ,NOMS,08/03/2013,Contracted-out operation of prisons and detention centres,Bronzefield,ASHFORD PRISON SERVICES LTD,4847760,"2,228,707.24",Prisons and detention centres operated by an external provider
MOJ,NOMS,11/03/2013,Contracted-out operation of prisons and detention centres,Altcourse,FAZAKERLEY PRISON SERVICES LTD,4843531,"-92,290.12",Prisons and detention centres operated by an external provider
MOJ,NOMS,11/03/2013,Contracted-out operation of prisons and detention centres,Thameside,BWP PROJECT SERVICES LTD,4843589,"2,132,923.11",Prisons and detention centres operated by an external provider
MOJ,NOMS,11/03/2013,Contracted-out operation of prisons and detention centres,Altcourse,FAZAKERLEY PRISON SERVICES LTD,4844105,"3,358,336.80",Prisons and detention centres operated by an external provider
MOJ,NOMS,12/03/2013,Contracted-out operation of prisons and detention centres,Dovegate,MORETON PRISON SERVICES LTD,4843606,"2,337,576.10",Prisons and detention centres operated by an external provider
MOJ,NOMS,12/03/2013,Contracted-out operation of prisons and detention centres,Forest Bank,AGECROFT PRISON MANAGEMENT LTD,4845029,"2,778,958.67",Prisons and detention centres operated by an external provider
MOJ,NOMS,13/03/2013,Contracted-out operation of prisons and detention centres,Oakwood,G4S CARE & JUSTICE SERVICES LTD,4846605,"2,047,627.03",Prisons and detention centres operated by an external provider
MOJ,NOMS,13/03/2013,Contracted-out operation of prisons and detention centres,G4S Birmingham,G4S CARE & JUSTICE SERVICES LTD,4846952,"2,230,060.43",Prisons and detention centres operated by an external provider
MOJ,NOMS,15/03/2013,Contracted-out operation of prisons and detention centres,Thameside,BWP PROJECT SERVICES LTD,4856787,"139,868.23",Prisons and detention centres operated by an external provider
MOJ,NOMS,20/03/2013,Contracted-out operation of prisons and detention centres,G4S Wolds,G4S CARE & JUSTICE SERVICES LTD,4864367,"734,228.18",Prisons and detention centres operated by an external provider
MOJ,NOMS,27/03/2013,Contracted-out operation of prisons and detention centres,Doncaster,SERCO LTD,4876656,"1,317,192.90",Prisons and detention centres operated by an external provider
MOJ,NOMS,01/03/2013,Contracted-out Probation Trusts,Surrey & Sussex Probation Trust,SURREY & SUSSEX PROBATION TRUST,4840920,"2,002,401.48",Probation services
MOJ,NOMS,04/03/2013,Contracted-out Probation Trusts,Preston,LANCASHIRE PROBATION TRUST,4841028,"30,693.99",Probation services
MOJ,NOMS,04/03/2013,Contracted-out Probation Trusts,Kirkham,LANCASHIRE PROBATION TRUST,4841018,"30,830.81",Probation services
MOJ,NOMS,04/03/2013,Contracted-out Probation Trusts,Gloucestershire Probation Trust,GLOUCESTERSHIRE PROBATION TRUST,4840404,"166,666.67",Probation services
MOJ,NOMS,04/03/2013,Contracted-out Probation Trusts,South Yorkshire Probation Trust,SOUTH YORKSHIRE PROBATION TRUST,4842513,"2,320,000.00",Probation services
MOJ,NOMS,05/03/2013,Contracted-out Probation Trusts,Risley,CHESHIRE PROBATION TRUST,4841454,"25,287.83",Probation services
MOJ,NOMS,05/03/2013,Contracted-out Probation Boards,Wakefield,WEST YORKSHIRE PROBATION TRUST,4844021,"29,112.15",Probation services
MOJ,NOMS,05/03/2013,Contracted-out Probation Trusts,Northumberland,NORTHUMBRIA PROBATION TRUST,4841451,"29,267.95",Probation services
MOJ,NOMS,05/03/2013,Contracted-out Probation Boards,Sheppey Clustered Services,KENT PROBATION TRUST,4842601,"34,392.16",Probation services
MOJ,NOMS,05/03/2013,Contracted-out Probation Trusts,Kent Probation Trust,KENT PROBATION TRUST,4842865,"1,000,000.00",Probation services
MOJ,NOMS,05/03/2013,Contracted-out Probation Trusts,Wales Probation Trust,WALES PROBATION TRUST,4842361,"2,000,000.00",Probation services
MOJ,NOMS,06/03/2013,Contracted-out Probation Trusts,Hewell,WEST MERCIA PROBATION TRUST,4844177,"28,163.84",Probation services
MOJ,NOMS,06/03/2013,Contracted-out Probation Boards,Brinsford,STAFFORDSHIRE & WEST MIDLANDS PROBATION TRUST,4844365,"53,887.63",Probation services
MOJ,NOMS,06/03/2013,Contracted-out Probation Trusts,Cambridgeshire Probation Trust,CAMBRIDGESHIRE & PETERBOROUGH PROBATION TRUST,4844626,"166,666.67",Probation services
MOJ,NOMS,06/03/2013,Contracted-out Probation Trusts,London Probation Trust,LONDON PROBATION TRUST,4841536,"9,000,000.00",Probation services
MOJ,NOMS,07/03/2013,Contracted-out Probation Trusts,Lincolnshire Probation Trust,LINCOLNSHIRE PROBATION TRUST,4846613,"729,559.83",Probation services
MOJ,NOMS,07/03/2013,Contracted-out Probation Trusts,Bedfordshire Probation Trust,BEDFORDSHIRE PROBATION TRUST,4847202,"749,698.99",Probation services
MOJ,NOMS,07/03/2013,Contracted-out Probation Trusts,West Mercia Probation Trust,WEST MERCIA PROBATION TRUST,4845870,"767,335.00",Probation services
MOJ,NOMS,07/03/2013,Contracted-out Probation Trusts,Humberside Probation Trust,HUMBERSIDE PROBATION TRUST,4846031,"800,555.31",Probation services
MOJ,NOMS,07/03/2013,Contracted-out Probation Trusts,Norfolk & Suffolk Probation Trust,NORFOLK & SUFFOLK PROBATION TRUST,4847356,"1,000,000.00",Probation services
MOJ,NOMS,07/03/2013,Contracted-out Probation Trusts,Merseyside Probation Trust,MERSEYSIDE PROBATION TRUST,4845229,"3,200,000.00",Probation services
MOJ,NOMS,08/03/2013,Contracted-out Probation Trusts,Nottingham,NOTTINGHAMSHIRE PROBATION TRUST,4851001,"34,275.91",Probation services
MOJ,NOMS,11/03/2013,Contracted-out Probation Trusts,Bullingdon,THAMES VALLEY PROBATION TRUST,4851192,"30,118.62",Probation services
MOJ,NOMS,11/03/2013,Contracted-out Probation Trusts,Bedfordshire Probation Trust,BEDFORDSHIRE PROBATION TRUST,4847203,"731,814.00",Probation services
MOJ,NOMS,11/03/2013,Contracted-out Probation Trusts,Avon and Somerset Probation Trust,AVON AND SOMERSET PROBATION TRUST,4848815,"1,085,000.00",Probation services
MOJ,NOMS,11/03/2013,Contracted-out Probation Trusts,Derbyshire Probation Trust,DERBYSHIRE PROBATION TRUST,4848549,"1,500,000.00",Probation services
MOJ,NOMS,12/03/2013,Contracted-out Probation Trusts,Channings Wood,DEVON & CORNWALL PROBATION TRUST,4851174,"26,762.30",Probation services
MOJ,NOMS,12/03/2013,Contracted-out Probation Trusts,Hull,HUMBERSIDE PROBATION TRUST,4852300,"34,083.76",Probation services
MOJ,NOMS,12/03/2013,Contracted-out Probation Trusts,Whatton,NOTTINGHAMSHIRE PROBATION TRUST,4851000,"38,755.83",Probation services
MOJ,NOMS,13/03/2013,Contracted-out Probation Trusts,Wayland,NORFOLK & SUFFOLK PROBATION TRUST,4852156,"25,688.39",Probation services
MOJ,NOMS,13/03/2013,Contracted-out Probation Trusts,Norwich,NORFOLK & SUFFOLK PROBATION TRUST,4852161,"27,127.20",Probation services
MOJ,NOMS,13/03/2013,Contracted-out Probation Trusts,Isle of Wight,HAMPSHIRE PROBATION TRUST,4850197,"39,907.77",Probation services
MOJ,NOMS,13/03/2013,Contracted-out Probation Trusts,Hertfordshire Probation Trust,HERTFORDSHIRE PROBATION TRUST,4851875,"824,425.00",Probation services
MOJ,NOMS,14/03/2013,Contracted-out Probation Trusts,Durham,DURHAM TEES VALLEY PROBATION TRUST,4856835,"37,203.83",Probation services
MOJ,NOMS,14/03/2013,Contracted-out Probation Trusts,Highpoint,NORFOLK & SUFFOLK PROBATION TRUST,4852158,"44,294.54",Probation services
MOJ,NOMS,15/03/2013,Contracted-out Probation Trusts,Holme House,DURHAM TEES VALLEY PROBATION TRUST,4857110,"27,439.65",Probation services
MOJ,NOMS,15/03/2013,Contracted-out Probation Trusts,Haverigg,CUMBRIA PROBATION TRUST,4856981,"33,382.02",Probation services
MOJ,NOMS,15/03/2013,Contracted-out Probation Trusts,Mount (The),HERTFORDSHIRE PROBATION TRUST,4844909,"46,454.93",Probation services
MOJ,NOMS,15/03/2013,Contracted-out Probation Trusts,Cumbria Probation Trust,CUMBRIA PROBATION TRUST,4856467,"400,000.00",Probation services
MOJ,NOMS,15/03/2013,Contracted-out Probation Trusts,Essex Probation Trust,ESSEX PROBATION TRUST,4855422,"600,000.00",Probation services
MOJ,NOMS,19/03/2013,Contracted-out Probation Trusts,Greater Manchester Probation Trust,GREATER MANCHESTER PROBATION TRUST,4858030,"3,919,819.00",Probation services
MOJ,NOMS,20/03/2013,Contracted-out Probation Trusts,Kent Probation Trust,KENT PROBATION TRUST,4861694,"162,140.00",Probation services
MOJ,NOMS,20/03/2013,Contracted-out Probation Trusts,Community Payback,SERCO LTD,4857432,"967,320.53",Probation services
MOJ,NOMS,20/03/2013,Contracted-out Probation Trusts,Thames Valley Probation Trust,THAMES VALLEY PROBATION TRUST,4856308,"2,040,574.50",Probation services
MOJ,NOMS,21/03/2013,Contracted-out Probation Trusts,Security Group,LONDON PROBATION TRUST,4852360,"40,300.00",Probation services
MOJ,NOMS,21/03/2013,Contracted-out Probation Boards,Cardiff,WALES PROBATION TRUST,4868158,"41,750.00",Probation services
MOJ,NOMS,21/03/2013,Contracted-out Probation Trusts,Chelmsford,ESSEX PROBATION TRUST,4863917,"88,178.90",Probation services
MOJ,NOMS,21/03/2013,Contracted-out Probation Trusts,Wiltshire Probation Trust,WILTSHIRE PROBATION TRUST,4861840,"572,676.62",Probation services
MOJ,NOMS,21/03/2013,Contracted-out Probation Trusts,Northumbria Probation Trust,NORTHUMBRIA PROBATION TRUST,4868469,"625,000.00",Probation services
MOJ,NOMS,21/03/2013,Contracted-out Probation Trusts,Staffordshire & West Midlands Probation Trust,STAFFORDSHIRE & WEST MIDLANDS PROBATION TRUST,4866952,"3,250,000.00",Probation services
MOJ,NOMS,22/03/2013,Contracted-out Probation Boards,New Hall,WEST YORKSHIRE PROBATION TRUST,4844022,"52,940.53",Probation services
MOJ,NOMS,22/03/2013,Contracted-out Probation Trusts,South Yorkshire Probation Trust,SOUTH YORKSHIRE PROBATION TRUST,4869742,"104,166.67",Probation services
MOJ,NOMS,25/03/2013,Contracted-out Probation Trusts,Glen Parva,LEICESTERSHIRE&RUTLAND PROBATION TRUST,4869276,"27,411.93",Probation services
MOJ,NOMS,25/03/2013,Contracted-out Probation Boards,Cardiff,WALES PROBATION TRUST,4868160,"42,735.50",Probation services
MOJ,NOMS,25/03/2013,Contracted-out Probation Trusts,Manchester,GREATER MANCHESTER PROBATION TRUST,4869831,"116,406.54",Probation services
MOJ,NOMS,26/03/2013,Contracted-out Probation Trusts,Cheshire Probation Trust,CHESHIRE PROBATION TRUST,DMCPT2027,"-420,000.00",Probation services
MOJ,NOMS,26/03/2013,Contracted-out Probation Trusts,Risley,CHESHIRE PROBATION TRUST,4872126,"27,348.74",Probation services
MOJ,NOMS,26/03/2013,Contracted-out Probation Trusts,Usk,WALES PROBATION TRUST,4871677,"29,479.95",Probation services
MOJ,NOMS,26/03/2013,Contracted-out Probation Trusts,Manchester,GREATER MANCHESTER PROBATION TRUST,4870728,"30,406.36",Probation services
MOJ,NOMS,26/03/2013,Contracted-out Probation Boards,Eastwood Park,AVON AND SOMERSET PROBATION TRUST,4872125,"53,610.84",Probation services
MOJ,NOMS,26/03/2013,Contracted-out Probation Trusts,West Mercia Probation Trust,WEST MERCIA PROBATION TRUST,4868154,"83,333.33",Probation services
MOJ,NOMS,26/03/2013,Contracted-out Probation Trusts,Avon and Somerset Probation Trust,AVON AND SOMERSET PROBATION TRUST,4872020,"125,000.00",Probation services
MOJ,NOMS,26/03/2013,Contracted-out Probation Trusts,Lancashire Probation Trust,LANCASHIRE PROBATION TRUST,4870189,"291,666.67",Probation services
MOJ,NOMS,27/03/2013,Contracted-out Probation Trusts,Dorset Probation Trust,DORSET PROBATION TRUST,4864087,"755,700.00",Probation services
MOJ,NOMS,01/03/2013,Professional Advice,Procurement Group,PINSENT MASONS LLP,4837045,"39,270.00",Professional advice
MOJ,NOMS,18/03/2013,Professional Advice,Procurement Group,BIRD & BIRD,4861261,"99,633.15",Professional advice
MOJ,NOMS,04/03/2013,WIP - Professional Fees,Estates Capacity,TURNER & TOWNSEND PROJECT MANAGEMENT,4841057,"26,903.74",Professional fees in respect of construction work-in-progress
MOJ,NOMS,06/03/2013,WIP - Professional Fees,Estates Capacity,RIDER LEVETT BUCKNALL UK LTD,4724059,"34,928.47",Professional fees in respect of construction work-in-progress
MOJ,NOMS,25/03/2013,WIP - Professional Fees,Estates Capacity,VINCI CONSTRUCTION UK LTD,4863410,"135,768.58",Professional fees in respect of construction work-in-progress
MOJ,NOMS,28/03/2013,Recreation,Brixton,SERVICESPORT UK LTD,4820049,"53,280.00",Provision of goods / services for prisoners' gymnasium
MOJ,NOMS,25/03/2013,Recreation,Hindley,THE LIFE CHANNEL GROUP LTD,9735940,"25,200.00",Provision of goods / services for prisoners' recreational activities
MOJ,NOMS,08/03/2013,VISA Costs,MOJ Shared Services NOMS Delivery,ALLSTAR BUSINESS SOLUTIONS LTD,4848968,"74,411.52",Purchase of motor fuel
MOJ,NOMS,08/03/2013,VISA Costs,MOJ Shared Services NOMS Delivery,ALLSTAR BUSINESS SOLUTIONS LTD,4848970,"77,276.53",Purchase of motor fuel
MOJ,NOMS,22/03/2013,VISA Costs,MOJ Shared Services NOMS Delivery,ALLSTAR BUSINESS SOLUTIONS LTD,4868552,"99,064.25",Purchase of motor fuel
MOJ,NOMS,06/03/2013,Victualling,Offender Services Co Commissioning Group,G4S CARE & JUSTICE SERVICES LTD,4842366,"-37,207.80","Purchases of food, including medical extras and foodstuffs."
MOJ,NOMS,06/03/2013,Victualling,Offender Services Co Commissioning Group,G4S CARE & JUSTICE SERVICES LTD,4582275,"37,207.80","Purchases of food, including medical extras and foodstuffs."
MOJ,NOMS,04/03/2013,"Books, Stationery & IT Consumables",MOJ Shared Services NOMS Delivery,J P MORGAN EUROPE LTD,4842902,"41,241.63",Purchases via Government Procurement Card (GPC)
MOJ,NOMS,04/03/2013,Accruals - Goods & services,MOJ Shared Services NOMS Delivery,J P MORGAN EUROPE LTD,4842902,"2,050,264.06",Purchases via Government Procurement Card (GPC)
MOJ,NOMS,14/03/2013,Raw Materials - ESS/LBA Industries ,Prison Industries,JIANGSU SAINTY CORP LTD,4856035,"30,937.50",Raw materials for prison industries
MOJ,NOMS,14/03/2013,Raw Materials - ESS/LBA Industries ,Prison Industries,JIANGSU SAINTY CORP LTD,4855932,"32,686.50",Raw materials for prison industries
MOJ,NOMS,14/03/2013,Raw Materials - ESS/LBA Industries ,Prison Industries,JIANGSU SAINTY CORP LTD,4855933,"32,686.50",Raw materials for prison industries
MOJ,NOMS,14/03/2013,Raw Materials - ESS/LBA Industries ,Prison Industries,JIANGSU SAINTY CORP LTD,4856031,"44,154.88",Raw materials for prison industries
MOJ,NOMS,14/03/2013,Raw Materials - ESS/LBA Industrie,Prison Industries,JIANGSU SAINTY CORP LTD,4855930,"66,528.00",Raw materials for prison industries
MOJ,NOMS,25/03/2013,Raw Materials Issued,Featherstone,L & P (PSCS),4871783,"25,862.28",Raw materials for prison industries
MOJ,NOMS,28/03/2013,Raw Materials - ESS/LBA Industries,Bullingdon,S JONES CONTAINER SERVICES LTD,4866763,"50,800.00",Raw materials for prison industries
MOJ,NOMS,26/03/2013,Clothing,Offender Services Co Commissioning Group,T R LAWMAN LTD,4866988,"30,559.68","Raw materials for prisoners to make clothing, bedding, towels etc"
MOJ,NOMS,26/03/2013,Clothing,Offender Services Co Commissioning Group,T R LAWMAN LTD,4866989,"70,411.68","Raw materials for prisoners to make clothing, bedding, towels etc"
MOJ,NOMS,07/03/2013,Contracted-out Resettlement Services,Glen Parva,NACRO,4843986,"-49,767.92",Resettlement and community services for prisoners 
MOJ,NOMS,07/03/2013,Contracted-out Resettlement Services,Glen Parva,NACRO,4843987,"29,032.00",Resettlement and community services for prisoners 
MOJ,NOMS,07/03/2013,Contracted-out Resettlement Services,NOMS CFO,PERTEMPS PEOPLE DEVELOPMENT GROUP,4843991,"106,976.49",Resettlement and community services for prisoners 
MOJ,NOMS,07/03/2013,Contracted-out Resettlement Services,NOMS CFO,PERTEMPS PEOPLE DEVELOPMENT GROUP,4843989,"160,478.88",Resettlement and community services for prisoners 
MOJ,NOMS,12/03/2013,Contracted-out Resettlement Services,Commercial Development Group,LONDON BOROUGH OF SOUTHWARK,4851142,"514,379.00",Resettlement and community services for prisoners 
MOJ,NOMS,13/03/2013,Contracted-out Resettlement Services,NOMS CFO,PERTEMPS PEOPLE DEVELOPMENT GROUP,4853000,"31,914.08",Resettlement and community services for prisoners 
MOJ,NOMS,13/03/2013,Contracted-out Resettlement Services,NOMS CFO,WEST YORKSHIRE PROBATION TRUST,4810716,"61,860.00",Resettlement and community services for prisoners 
MOJ,NOMS,14/03/2013,Contracted-out Resettlement Services,Commercial Development Group,DWP - JOB CENTRE PLUS,4854496,"27,600.00",Resettlement and community services for prisoners 
MOJ,NOMS,14/03/2013,Contracted-out Resettlement Services,NOMS CFO,MERSEYSIDE PROBATION TRUST,4854997,"28,555.95",Resettlement and community services for prisoners 
MOJ,NOMS,14/03/2013,Contracted-out Resettlement Services,Liverpool,SHELTER,4791015,"29,603.66",Resettlement and community services for prisoners 
MOJ,NOMS,14/03/2013,Contracted-out Resettlement Services,Liverpool,SHELTER,4592091,"29,603.66",Resettlement and community services for prisoners 
MOJ,NOMS,14/03/2013,Contracted-out Resettlement Services,Liverpool,SHELTER,4659029,"29,603.66",Resettlement and community services for prisoners 
MOJ,NOMS,14/03/2013,Contracted-out Resettlement Services,Cookham Wood,MEDWAY COUNCIL,4856683,"67,727.01",Resettlement and community services for prisoners 
MOJ,NOMS,15/03/2013,Contracted-out Resettlement Services,NOMS CFO,PERTEMPS PEOPLE DEVELOPMENT GROUP,4857425,"48,256.20",Resettlement and community services for prisoners 
MOJ,NOMS,15/03/2013,Contracted-out Resettlement Services,NOMS CFO,LEICESTERSHIRE&RUTLAND PROBATION TRUST,4854064,"97,240.50",Resettlement and community services for prisoners 
MOJ,NOMS,15/03/2013,Contracted-out Resettlement Services,NOMS CFO,MERSEYSIDE PROBATION TRUST,4855008,"101,331.75",Resettlement and community services for prisoners 
MOJ,NOMS,15/03/2013,Contracted-out Resettlement Services,NOMS CFO,WEST YORKSHIRE PROBATION TRUST,4848304,"112,639.10",Resettlement and community services for prisoners 
MOJ,NOMS,18/03/2013,Contracted-out Resettlement Services,NOMS CFO,TRIBAL EDUCATION LTD,4851337,"80,372.25",Resettlement and community services for prisoners 
MOJ,NOMS,18/03/2013,Contracted-out Resettlement Services,NOMS CFO,SERCO LTD,4852108,"95,697.00",Resettlement and community services for prisoners 
MOJ,NOMS,18/03/2013,Contracted-out Resettlement Services,NOMS CFO,SERCO LTD,4852106,"100,100.69",Resettlement and community services for prisoners 
MOJ,NOMS,18/03/2013,Contracted-out Resettlement Services,NOMS CFO,WORKING LINKS,4855011,"303,568.59",Resettlement and community services for prisoners 
MOJ,NOMS,21/03/2013,Contracted-out Resettlement Services,Swinfen Hall,NACRO,4787117,"-199,996.00",Resettlement and community services for prisoners 
MOJ,NOMS,21/03/2013,Contracted-out Resettlement Services,Onley,NACRO,4863470,"-55,296.00",Resettlement and community services for prisoners 
MOJ,NOMS,21/03/2013,Contracted-out Resettlement Services,Onley,NACRO,4611402,"55,296.00",Resettlement and community services for prisoners 
MOJ,NOMS,21/03/2013,Contracted-out Resettlement Services,Swinfen Hall,NACRO,4838386,"199,996.00",Resettlement and community services for prisoners 
MOJ,NOMS,22/03/2013,Contracted-out Resettlement Services,NOMS CFO,UBIQUE PARTNERSHIPS  LTD,4868532,"-37,354.12",Resettlement and community services for prisoners 
MOJ,NOMS,22/03/2013,Contracted-out Resettlement Services,NOMS CFO,UBIQUE PARTNERSHIPS  LTD,4868603,"37,354.12",Resettlement and community services for prisoners 
MOJ,NOMS,22/03/2013,Contracted-out Resettlement Services,NOMS Cymru Regional Services,G4S CARE & JUSTICE SERVICES LTD,4846936,"45,602.56",Resettlement and community services for prisoners 
MOJ,NOMS,25/03/2013,Contracted-out Resettlement Services,Onley,NACRO,4844420,"96,771.00",Resettlement and community services for prisoners 
MOJ,NOMS,26/03/2013,Contracted-out Resettlement Services,Commercial Development Group,GREATER MANCHESTER POLICE (THE),4869663,"2,670,405.00",Resettlement and community services for prisoners 
MOJ,NOMS,27/03/2013,Contracted-out Resettlement Services,DDC East Midlands,NACRO,4875425,"41,967.00",Resettlement and community services for prisoners 
MOJ,NOMS,27/03/2013,Specialist Contractors,Financial Management and Control,MINISTRY OF JUSTICE,4774492,"312,480.00",Specialist contractors engaged under a fixed-term contract for services 
MOJ,NOMS,27/03/2013,Specialist Contractors,Financial Management and Control,MINISTRY OF JUSTICE,4770096,"313,029.00",Specialist contractors engaged under a fixed-term contract for services 
MOJ,NOMS,25/03/2013,Staff provision from NHS ,Whitemoor,CAMBRIDGESHIRE & PETERBOROUGH NHS FOUNDATION TRUST,4870030,"126,908.38",Staff provision from NHS 
MOJ,NOMS,14/03/2013,Training and Further Education Courses,Learning and Development Group,DE MONTFORT UNIVERSITY HIGHER EDUCATION CORPORATION,4837203,"95,752.50",Staff training and further education courses
MOJ,NOMS,25/03/2013,Training and Further Education Courses,Learning and Development Group,SHEFFIELD HALLAM UNIVERSITY,4855602,"198,954.25",Staff training and further education courses
MOJ,NOMS,25/03/2013,Training and Further Education Courses,Learning and Development Group,SHEFFIELD HALLAM UNIVERSITY,4855601,"201,376.75",Staff training and further education courses
MOJ,NOMS,01/03/2013,Office Equipment Purchases Under 10k,Feltham,JIANGSU SUNSHINE DONGSHENG IMP & EXP CO LTD,4839131,"26,093.33",Staff uniforms
MOJ,NOMS,20/03/2013,Consumables,Procurement Group,JIANGSU SUNSHINE DONGSHENG IMP & EXP CO LTD,4861949,"41,573.54",Staff uniforms
MOJ,NOMS,05/03/2013,Travel - Non-Taxable,HOPS Payroll Charge,REDFERN TRAVEL,4842907,"709,593.05",Staff work related travel
MOJ,NOMS,13/03/2013,Subsistence,HOPS Payroll Charge,CALDER CONFERENCE,4855661,"80,091.58",Subsistence and hotel accommodation for staff working away from their home area 
MOJ,NOMS,22/03/2013,Subsistence,FBP Commissioning and Commercial,DERBYSHIRE PROBATION TRUST,4866997,"34,247.29",Subsistence and hotel accommodation for staff working away from their home area 
MOJ,NOMS,21/03/2013,Tools & Equipment,Lincoln,J & B SEWING MACHINE CO LTD,4815974,"33,526.20",Tools and equipment
MOJ,NOMS,05/03/2013,Training Materials,Offender Services Co Commissioning Group,PRODIGY LEARNING,4842544,"39,800.00",Training materials used in prisoner training courses
MOJ,NOMS,27/03/2013,Contracted-out Other Services,Procurement Group,MINISTRY OF JUSTICE,4866991,"54,571.81",Transfer of MoJ procurement costs
MOJ,NOMS,27/03/2013,Contracted-out Other Services,Procurement Group,MINISTRY OF JUSTICE,4866990,"106,235.58",Transfer of MoJ procurement costs
MOJ,NOMS,01/03/2013,Water and Sewage,Liverpool,UNITED UTILITIES WATER PLC,4839832,"31,733.63",Water and sewage utility costs
MOJ,NOMS,01/03/2013,Water and Sewage,Thorn Cross,UNITED UTILITIES WATER PLC,4816602,"33,556.56",Water and sewage utility costs
MOJ,NOMS,01/03/2013,Water and Sewage,Risley,UNITED UTILITIES WATER PLC,4839836,"39,230.93",Water and sewage utility costs
MOJ,NOMS,08/03/2013,Water and Sewage,Channings Wood,SOUTH WEST WATER LTD,4848934,"29,829.82",Water and sewage utility costs
MOJ,NOMS,11/03/2013,Water and Sewage,Highpoint,ANGLIAN WATER SERVICES LTD,4846239,"34,513.46",Water and sewage utility costs
MOJ,NOMS,21/03/2013,Water and Sewage,Lancaster Farms,UNITED UTILITIES WATER PLC,4862314,"41,116.06",Water and sewage utility costs
MOJ,NOMS,28/03/2013,Water and Sewage,Lindholme,YORKSHIRE WATER SERVICES LTD,4855673,"27,312.41",Water and sewage utility costs
